Workbook

Sheet Chart
A1: Lunar Cycle Jitter: McKenna-Meyer Goddess Calendar
A2: http://www.fractal-timewave.com/mmgc/mmgc.htm
A3: ="Each lunar cycle contains "&MPC&" months ("&FMPC&" full, "&DMPC&" deficient) = "&DPC&" days = "&reducefraction(DPC,7,FALSE,FALSE,TRUE)&" weeks." -> Each lunar cycle contains 3055 months (1621 full, 1434 deficient) = 90216 days = 12888 weeks.
A4: Lunar years have 13 lunar months, even-numbered months have 29 days,
A5: odd-numbered months have 30 days, except that one day is removed from the last month
A6: of year numbers divisible by 10 or 235. Each calendar cycle contains 2 lunar cycles = 470 lunar years.
A7: Common year FDFDFDFDFDFDF=384 days, leap FDFDFDFDFDFDD=383 days.
A8: ="Mean month = "&"29+"&reducefraction(FMPC,MPC,FALSE,FALSE,TRUE)&" days = 29d 12h 44m "&reducefraction(240*(360*FMPC-191*MPC),MPC,FALSE,FALSE,TRUE)&" seconds or about 29"&MID(FMPC/MPC,2,20)&" days = 29d 12h 44m "&ROUND(240*(360*FMPC-191*MPC)/MPC,6)&" seconds." -> Mean month = 29+1621/3055 days = 29d 12h 44m 4+196/611 seconds or about 29.530605564648118 days = 29d 12h 44m 4.320786 seconds.
A9: ="Duration per ''Part'' = 1/"&MPC&" day = "&reducefraction(24,MPC,FALSE,FALSE,TRUE)&" hour = "&reducefraction(1440,MPC,FALSE,FALSE,TRUE)&" minutes = "&reducefraction(86400,MPC,FALSE,FALSE,TRUE)&" seconds; one hour = "&reducefraction(MPC,24,FALSE,FALSE,TRUE)&" parts." -> Duration per ''Part'' = 1/3055 day = 24/3055 hour = 288/611 minutes = 28+172/611 seconds; one hour = 127+7/24 parts.
Q12: FALSE
Q22: 13
Q23: Selected
Q24: Month
Q25: in Year
Q26: (1 to 13)
Q34: 2
Q35: Selected
Q36: Month 2
Q37: in Year
Q38: (1 to 13)

Sheet Data
A1: Lunar Cycle Jitter Evaluator
A2: by Dr. Irv Bromberg, University of Toronto, Canada
A3: http://individual.utoronto.ca/intervalmath/jitter/index.html | D3: Jitter | E3: (parts)
D4: =MAX(H:H) -> 2617 | E4: maximum | F4: =reducefraction(JitterMax*MPC,MPC,FALSE,FALSE,FALSE) -> 2617
A5: Months per Cycle (Parts per Day): | B5: 3055 | C5: months (parts) | D5: =MIN(H:H) -> -5672 | E5: minimum | F5: =reducefraction(JitterMin*MPC,MPC,FALSE,FALSE,FALSE) -> –(5672)
A6: 30-day Months per Cycle: | B6: 1621 | C6: months | D6: =D4-D5 -> 8289 | E6: range | F6: =reducefraction(JitterRange*MPC,MPC,FALSE,FALSE,FALSE) -> 8289
A7: 29-day Months per Cycle: | B7: =MPC-FMPC -> 1434 | C7: months | D7: ="Jitter range = "&F6&" parts = "&reducefraction(F6*24,MPC,FALSE,FALSE,FALSE)&" hours" -> Jitter range = 8289 parts = 65 + 361 / 3055 hours
A8: Days per Cycle (Parts per Month): | B8: =29*MPC+FMPC -> 90216 | C8: days (parts)
A9: Yerms per Cycle: | B9: =2*DPC-59*MPC -> 187 | C9: yerms | D9: Limits for Chart:
A10: Mean Month: | B10: ="29 + "&reducefraction(FMPC,MPC,FALSE,FALSE,FALSE) -> 29 + 1621 / 3055 | C10: days | D10: x | E10: y | F10: Hours
A11: Mean Month >29d: | B11: =FMPC/MPC -> 0.530605564648118 | C11: days | D11: =A21 -> 1 | E11: =JitterMax -> 2617 | F11: =E11*24/MPC -> 20.55908347
A12: Mean Month >29d 12h 44m: | B12: =reducefraction(240*(360*FMPC-191*MPC),MPC,FALSE,FALSE,TRUE) -> 4+196/611 | C12: seconds | D12: =D11+MPC*2 -> 6111 | E12: =E11 -> 2617 | F12: =E12*24/MPC -> 20.55908347
A13: … or approximately: | B13: =240*(360*FMPC-191*MPC)/MPC -> 4.320785597 | C13: seconds
D14: =D11 -> 1 | E14: 0
D15: =D12 -> 6111 | E15: 0
D17: =A21 -> 1 | E17: =JitterMin -> -5672 | F17: =E17*24/MPC -> -44.55908347
A18: Duration per Part: | B18: =reducefraction(1440,MPC,FALSE,FALSE,FALSE) -> 288 / 611 | C18: minutes | D18: =D12 -> 6111 | E18: =E17 -> -5672 | F18: =E18*24/MPC -> -44.55908347
A20: Month in Cycle | B20: Lunar Year | C20: Month in Year | D20: Short Month? | E20: Month Length | F20: New Month Moment | G20: Elapsed | H20: Difference
A21: 1 | B21: 1 | C21: 1 | D21: =AND(OR(MOD(B21,235)=0,MOD(B21,10)=0),C21=13) -> FALSE | E21: =IF(MOD(C21,2)=1,30,29)-IF(D21,1,0) -> 30 | F21: 0 | G21: 0 | H21: =F21-G21 -> 0
A22: =A21+1 -> 2 | B22: =IF(C22=1,B21+1,B21) -> 1 | C22: =IF(C21=13,1,C21+1) -> 2 | D22: =AND(OR(MOD(B22,235)=0,MOD(B22,10)=0),C22=13) -> FALSE | E22: =IF(MOD(C22,2)=1,30,29)-IF(D22,1,0) -> 29 | F22: =F21+PPM -> 90216 | G22: =G21+E21*PPD -> 91650 | H22: -1434
A23: =A22+1 -> 3 | B23: 1 | C23: =IF(C22=13,1,C22+1) -> 3 | D23: FALSE | E23: 30 | F23: =F22+PPM -> 180432 | G23: 180245 | H23: 187
A24: 4 | B24: 1 | C24: 4 | D24: FALSE | E24: 29 | F24: 270648 | G24: 271895 | H24: -1247
A25: 5 | B25: 1 | C25: 5 | D25: FALSE | E25: 30 | F25: 360864 | G25: 360490 | H25: 374
A26: 6 | B26: 1 | C26: 6 | D26: FALSE | E26: 29 | F26: 451080 | G26: 452140 | H26: -1060
A27: 7 | B27: 1 | C27: 7 | D27: FALSE | E27: 30 | F27: 541296 | G27: 540735 | H27: 561
A28: 8 | B28: 1 | C28: 8 | D28: FALSE | E28: 29 | F28: 631512 | G28: 632385 | H28: -873
A29: 9 | B29: 1 | C29: 9 | D29: FALSE | E29: 30 | F29: 721728 | G29: 720980 | H29: 748
A30: 10 | B30: 1 | C30: 10 | D30: FALSE | E30: 29 | F30: 811944 | G30: 812630 | H30: -686
A31: 11 | B31: 1 | C31: 11 | D31: FALSE | E31: 30 | F31: 902160 | G31: 901225 | H31: 935
A32: 12 | B32: 1 | C32: 12 | D32: FALSE | E32: 29 | F32: 992376 | G32: 992875 | H32: -499
A33: 13 | B33: 1 | C33: 13 | D33: FALSE | E33: 30 | F33: 1082592 | G33: 1081470 | H33: 1122
A34: 14 | B34: 2 | C34: 1 | D34: FALSE | E34: 30 | F34: 1172808 | G34: 1173120 | H34: -312
A35: 15 | B35: 2 | C35: 2 | D35: FALSE | E35: 29 | F35: 1263024 | G35: 1264770 | H35: -1746
A36: 16 | B36: 2 | C36: 3 | D36: FALSE | E36: 30 | F36: 1353240 | G36: 1353365 | H36: -125
A37: 17 | B37: 2 | C37: 4 | D37: FALSE | E37: 29 | F37: 1443456 | G37: 1445015 | H37: -1559
A38: 18 | B38: 2 | C38: 5 | D38: FALSE | E38: 30 | F38: 1533672 | G38: 1533610 | H38: 62
A39: 19 | B39: 2 | C39: 6 | D39: FALSE | E39: 29 | F39: 1623888 | G39: 1625260 | H39: -1372
A40: 20 | B40: 2 | C40: 7 | D40: FALSE | E40: 30 | F40: 1714104 | G40: 1713855 | H40: 249
A41: 21 | B41: 2 | C41: 8 | D41: FALSE | E41: 29 | F41: 1804320 | G41: 1805505 | H41: -1185
A42: 22 | B42: 2 | C42: 9 | D42: FALSE | E42: 30 | F42: 1894536 | G42: 1894100 | H42: 436
A43: 23 | B43: 2 | C43: 10 | D43: FALSE | E43: 29 | F43: 1984752 | G43: 1985750 | H43: -998
A44: 24 | B44: 2 | C44: 11 | D44: FALSE | E44: 30 | F44: 2074968 | G44: 2074345 | H44: 623
A45: 25 | B45: 2 | C45: 12 | D45: FALSE | E45: 29 | F45: 2165184 | G45: 2165995 | H45: -811
A46: 26 | B46: 2 | C46: 13 | D46: FALSE | E46: 30 | F46: 2255400 | G46: 2254590 | H46: 810
A47: 27 | B47: 3 | C47: 1 | D47: FALSE | E47: 30 | F47: 2345616 | G47: 2346240 | H47: -624
A48: 28 | B48: 3 | C48: 2 | D48: FALSE | E48: 29 | F48: 2435832 | G48: 2437890 | H48: -2058
A49: 29 | B49: 3 | C49: 3 | D49: FALSE | E49: 30 | F49: 2526048 | G49: 2526485 | H49: -437
A50: 30 | B50: 3 | C50: 4 | D50: FALSE | E50: 29 | F50: 2616264 | G50: 2618135 | H50: -1871
A51: 31 | B51: 3 | C51: 5 | D51: FALSE | E51: 30 | F51: 2706480 | G51: 2706730 | H51: -250
A52: 32 | B52: 3 | C52: 6 | D52: FALSE | E52: 29 | F52: 2796696 | G52: 2798380 | H52: -1684
A53: 33 | B53: 3 | C53: 7 | D53: FALSE | E53: 30 | F53: 2886912 | G53: 2886975 | H53: -63
A54: 34 | B54: 3 | C54: 8 | D54: FALSE | E54: 29 | F54: 2977128 | G54: 2978625 | H54: -1497
A55: 35 | B55: 3 | C55: 9 | D55: FALSE | E55: 30 | F55: 3067344 | G55: 3067220 | H55: 124
A56: =A55+1 -> 36 | B56: 3 | C56: 10 | D56: FALSE | E56: 29 | F56: 3157560 | G56: 3158870 | H56: -1310
A57: 37 | B57: 3 | C57: 11 | D57: FALSE | E57: 30 | F57: 3247776 | G57: 3247465 | H57: 311
A58: 38 | B58: 3 | C58: 12 | D58: FALSE | E58: 29 | F58: 3337992 | G58: 3339115 | H58: -1123
A59: 39 | B59: 3 | C59: 13 | D59: FALSE | E59: 30 | F59: 3428208 | G59: 3427710 | H59: 498
A60: 40 | B60: 4 | C60: 1 | D60: FALSE | E60: 30 | F60: 3518424 | G60: 3519360 | H60: -936
A61: 41 | B61: 4 | C61: 2 | D61: FALSE | E61: 29 | F61: 3608640 | G61: 3611010 | H61: -2370
A62: 42 | B62: 4 | C62: 3 | D62: FALSE | E62: 30 | F62: 3698856 | G62: 3699605 | H62: -749
A63: 43 | B63: 4 | C63: 4 | D63: FALSE | E63: 29 | F63: 3789072 | G63: 3791255 | H63: -2183
A64: 44 | B64: 4 | C64: 5 | D64: FALSE | E64: 30 | F64: 3879288 | G64: 3879850 | H64: -562
A65: 45 | B65: 4 | C65: 6 | D65: FALSE | E65: 29 | F65: 3969504 | G65: 3971500 | H65: -1996
A66: 46 | B66: 4 | C66: 7 | D66: FALSE | E66: 30 | F66: 4059720 | G66: 4060095 | H66: -375
A67: 47 | B67: 4 | C67: 8 | D67: FALSE | E67: 29 | F67: 4149936 | G67: 4151745 | H67: -1809
A68: 48 | B68: 4 | C68: 9 | D68: FALSE | E68: 30 | F68: 4240152 | G68: 4240340 | H68: -188
A69: 49 | B69: 4 | C69: 10 | D69: FALSE | E69: 29 | F69: 4330368 | G69: 4331990 | H69: -1622
A70: 50 | B70: 4 | C70: 11 | D70: FALSE | E70: 30 | F70: 4420584 | G70: 4420585 | H70: -1
A71: 51 | B71: 4 | C71: 12 | D71: FALSE | E71: 29 | F71: 4510800 | G71: 4512235 | H71: -1435
A72: 52 | B72: 4 | C72: 13 | D72: FALSE | E72: 30 | F72: 4601016 | G72: 4600830 | H72: 186
A73: 53 | B73: 5 | C73: 1 | D73: FALSE | E73: 30 | F73: 4691232 | G73: 4692480 | H73: -1248
A74: 54 | B74: 5 | C74: 2 | D74: FALSE | E74: 29 | F74: 4781448 | G74: 4784130 | H74: -2682
A75: 55 | B75: 5 | C75: 3 | D75: FALSE | E75: 30 | F75: 4871664 | G75: 4872725 | H75: -1061
A76: 56 | B76: 5 | C76: 4 | D76: FALSE | E76: 29 | F76: 4961880 | G76: 4964375 | H76: -2495
A77: 57 | B77: 5 | C77: 5 | D77: FALSE | E77: 30 | F77: 5052096 | G77: 5052970 | H77: -874
A78: 58 | B78: 5 | C78: 6 | D78: FALSE | E78: 29 | F78: 5142312 | G78: 5144620 | H78: -2308
A79: 59 | B79: 5 | C79: 7 | D79: FALSE | E79: 30 | F79: 5232528 | G79: 5233215 | H79: -687
A80: 60 | B80: 5 | C80: 8 | D80: FALSE | E80: 29 | F80: 5322744 | G80: 5324865 | H80: -2121
A81: 61 | B81: 5 | C81: 9 | D81: FALSE | E81: 30 | F81: 5412960 | G81: 5413460 | H81: -500
A82: 62 | B82: 5 | C82: 10 | D82: FALSE | E82: 29 | F82: 5503176 | G82: 5505110 | H82: -1934
A83: 63 | B83: 5 | C83: 11 | D83: FALSE | E83: 30 | F83: 5593392 | G83: 5593705 | H83: -313
A84: 64 | B84: 5 | C84: 12 | D84: FALSE | E84: 29 | F84: 5683608 | G84: 5685355 | H84: -1747
A85: 65 | B85: 5 | C85: 13 | D85: FALSE | E85: 30 | F85: 5773824 | G85: 5773950 | H85: =F85-G85 -> -126
A86: 66 | B86: =IF(C86=1,B85+1,B85) -> 6 | C86: 1 | D86: =AND(OR(MOD(B86,235)=0,MOD(B86,10)=0),C86=13) -> FALSE | E86: =IF(MOD(C86,2)=1,30,29)-IF(D86,1,0) -> 30 | F86: 5864040 | G86: =G85+E85*PPD -> 5865600 | H86: -1560
A87: 67 | B87: 6 | C87: =IF(C86=13,1,C86+1) -> 2 | D87: FALSE | E87: 29 | F87: =F86+PPM -> 5954256 | G87: 5957250 | H87: -2994
A88: 68 | B88: 6 | C88: 3 | D88: FALSE | E88: 30 | F88: 6044472 | G88: 6045845 | H88: -1373
A89: 69 | B89: 6 | C89: 4 | D89: FALSE | E89: 29 | F89: 6134688 | G89: 6137495 | H89: -2807
A90: 70 | B90: 6 | C90: 5 | D90: FALSE | E90: 30 | F90: 6224904 | G90: 6226090 | H90: -1186
A91: 71 | B91: 6 | C91: 6 | D91: FALSE | E91: 29 | F91: 6315120 | G91: 6317740 | H91: -2620
A92: 72 | B92: 6 | C92: 7 | D92: FALSE | E92: 30 | F92: 6405336 | G92: 6406335 | H92: -999
A93: 73 | B93: 6 | C93: 8 | D93: FALSE | E93: 29 | F93: 6495552 | G93: 6497985 | H93: -2433
A94: 74 | B94: 6 | C94: 9 | D94: FALSE | E94: 30 | F94: 6585768 | G94: 6586580 | H94: -812
A95: 75 | B95: 6 | C95: 10 | D95: FALSE | E95: 29 | F95: 6675984 | G95: 6678230 | H95: -2246
A96: 76 | B96: 6 | C96: 11 | D96: FALSE | E96: 30 | F96: 6766200 | G96: 6766825 | H96: -625
A97: 77 | B97: 6 | C97: 12 | D97: FALSE | E97: 29 | F97: 6856416 | G97: 6858475 | H97: -2059
A98: 78 | B98: 6 | C98: 13 | D98: FALSE | E98: 30 | F98: 6946632 | G98: 6947070 | H98: -438
A99: 79 | B99: 7 | C99: 1 | D99: FALSE | E99: 30 | F99: 7036848 | G99: 7038720 | H99: -1872
A100: 80 | B100: 7 | C100: 2 | D100: FALSE | E100: 29 | F100: 7127064 | G100: 7130370 | H100: -3306
A101: 81 | B101: 7 | C101: 3 | D101: FALSE | E101: 30 | F101: 7217280 | G101: 7218965 | H101: -1685
A102: 82 | B102: 7 | C102: 4 | D102: FALSE | E102: 29 | F102: 7307496 | G102: 7310615 | H102: -3119
A103: 83 | B103: 7 | C103: 5 | D103: FALSE | E103: 30 | F103: 7397712 | G103: 7399210 | H103: -1498
A104: 84 | B104: 7 | C104: 6 | D104: FALSE | E104: 29 | F104: 7487928 | G104: 7490860 | H104: -2932
A105: 85 | B105: 7 | C105: 7 | D105: FALSE | E105: 30 | F105: 7578144 | G105: 7579455 | H105: -1311
A106: 86 | B106: 7 | C106: 8 | D106: FALSE | E106: 29 | F106: 7668360 | G106: 7671105 | H106: -2745
A107: 87 | B107: 7 | C107: 9 | D107: FALSE | E107: 30 | F107: 7758576 | G107: 7759700 | H107: -1124
A108: 88 | B108: 7 | C108: 10 | D108: FALSE | E108: 29 | F108: 7848792 | G108: 7851350 | H108: -2558
A109: 89 | B109: 7 | C109: 11 | D109: FALSE | E109: 30 | F109: 7939008 | G109: 7939945 | H109: -937
A110: 90 | B110: 7 | C110: 12 | D110: FALSE | E110: 29 | F110: 8029224 | G110: 8031595 | H110: -2371
A111: 91 | B111: 7 | C111: 13 | D111: FALSE | E111: 30 | F111: 8119440 | G111: 8120190 | H111: -750
A112: 92 | B112: 8 | C112: 1 | D112: FALSE | E112: 30 | F112: 8209656 | G112: 8211840 | H112: -2184
A113: 93 | B113: 8 | C113: 2 | D113: FALSE | E113: 29 | F113: 8299872 | G113: 8303490 | H113: -3618
A114: 94 | B114: 8 | C114: 3 | D114: FALSE | E114: 30 | F114: 8390088 | G114: 8392085 | H114: -1997
A115: 95 | B115: 8 | C115: 4 | D115: FALSE | E115: 29 | F115: 8480304 | G115: 8483735 | H115: -3431
A116: 96 | B116: 8 | C116: 5 | D116: FALSE | E116: 30 | F116: 8570520 | G116: 8572330 | H116: -1810
A117: 97 | B117: 8 | C117: 6 | D117: FALSE | E117: 29 | F117: 8660736 | G117: 8663980 | H117: -3244
A118: 98 | B118: 8 | C118: 7 | D118: FALSE | E118: 30 | F118: 8750952 | G118: 8752575 | H118: -1623
A119: 99 | B119: 8 | C119: 8 | D119: FALSE | E119: 29 | F119: 8841168 | G119: 8844225 | H119: -3057
A120: =A119+1 -> 100 | B120: 8 | C120: 9 | D120: FALSE | E120: 30 | F120: 8931384 | G120: 8932820 | H120: -1436
A121: 101 | B121: 8 | C121: 10 | D121: FALSE | E121: 29 | F121: 9021600 | G121: 9024470 | H121: -2870
A122: 102 | B122: 8 | C122: 11 | D122: FALSE | E122: 30 | F122: 9111816 | G122: 9113065 | H122: -1249
A123: 103 | B123: 8 | C123: 12 | D123: FALSE | E123: 29 | F123: 9202032 | G123: 9204715 | H123: -2683
A124: 104 | B124: 8 | C124: 13 | D124: FALSE | E124: 30 | F124: 9292248 | G124: 9293310 | H124: -1062
A125: 105 | B125: 9 | C125: 1 | D125: FALSE | E125: 30 | F125: 9382464 | G125: 9384960 | H125: -2496
A126: 106 | B126: 9 | C126: 2 | D126: FALSE | E126: 29 | F126: 9472680 | G126: 9476610 | H126: -3930
A127: 107 | B127: 9 | C127: 3 | D127: FALSE | E127: 30 | F127: 9562896 | G127: 9565205 | H127: -2309
A128: 108 | B128: 9 | C128: 4 | D128: FALSE | E128: 29 | F128: 9653112 | G128: 9656855 | H128: -3743
A129: 109 | B129: 9 | C129: 5 | D129: FALSE | E129: 30 | F129: 9743328 | G129: 9745450 | H129: -2122
A130: 110 | B130: 9 | C130: 6 | D130: FALSE | E130: 29 | F130: 9833544 | G130: 9837100 | H130: -3556
A131: 111 | B131: 9 | C131: 7 | D131: FALSE | E131: 30 | F131: 9923760 | G131: 9925695 | H131: -1935
A132: 112 | B132: 9 | C132: 8 | D132: FALSE | E132: 29 | F132: 10013976 | G132: 10017345 | H132: -3369
A133: 113 | B133: 9 | C133: 9 | D133: FALSE | E133: 30 | F133: 10104192 | G133: 10105940 | H133: -1748
A134: 114 | B134: 9 | C134: 10 | D134: FALSE | E134: 29 | F134: 10194408 | G134: 10197590 | H134: -3182
A135: 115 | B135: 9 | C135: 11 | D135: FALSE | E135: 30 | F135: 10284624 | G135: 10286185 | H135: -1561
A136: 116 | B136: 9 | C136: 12 | D136: FALSE | E136: 29 | F136: 10374840 | G136: 10377835 | H136: -2995
A137: 117 | B137: 9 | C137: 13 | D137: FALSE | E137: 30 | F137: 10465056 | G137: 10466430 | H137: -1374
A138: 118 | B138: 10 | C138: 1 | D138: FALSE | E138: 30 | F138: 10555272 | G138: 10558080 | H138: -2808
A139: 119 | B139: 10 | C139: 2 | D139: FALSE | E139: 29 | F139: 10645488 | G139: 10649730 | H139: -4242
A140: 120 | B140: 10 | C140: 3 | D140: FALSE | E140: 30 | F140: 10735704 | G140: 10738325 | H140: -2621
A141: 121 | B141: 10 | C141: 4 | D141: FALSE | E141: 29 | F141: 10825920 | G141: 10829975 | H141: -4055
A142: 122 | B142: 10 | C142: 5 | D142: FALSE | E142: 30 | F142: 10916136 | G142: 10918570 | H142: -2434
A143: 123 | B143: 10 | C143: 6 | D143: FALSE | E143: 29 | F143: 11006352 | G143: 11010220 | H143: -3868
A144: 124 | B144: 10 | C144: 7 | D144: FALSE | E144: 30 | F144: 11096568 | G144: 11098815 | H144: -2247
A145: 125 | B145: 10 | C145: 8 | D145: FALSE | E145: 29 | F145: 11186784 | G145: 11190465 | H145: -3681
A146: 126 | B146: 10 | C146: 9 | D146: FALSE | E146: 30 | F146: 11277000 | G146: 11279060 | H146: -2060
A147: 127 | B147: 10 | C147: 10 | D147: FALSE | E147: 29 | F147: 11367216 | G147: 11370710 | H147: -3494
A148: 128 | B148: 10 | C148: 11 | D148: FALSE | E148: 30 | F148: 11457432 | G148: 11459305 | H148: -1873
A149: 129 | B149: 10 | C149: 12 | D149: FALSE | E149: 29 | F149: 11547648 | G149: 11550955 | H149: =F149-G149 -> -3307
A150: 130 | B150: =IF(C150=1,B149+1,B149) -> 10 | C150: 13 | D150: =AND(OR(MOD(B150,235)=0,MOD(B150,10)=0),C150=13) -> TRUE | E150: =IF(MOD(C150,2)=1,30,29)-IF(D150,1,0) -> 29 | F150: 11637864 | G150: =G149+E149*PPD -> 11639550 | H150: -1686
A151: 131 | B151: 11 | C151: =IF(C150=13,1,C150+1) -> 1 | D151: FALSE | E151: 30 | F151: =F150+PPM -> 11728080 | G151: 11728145 | H151: -65
A152: 132 | B152: 11 | C152: 2 | D152: FALSE | E152: 29 | F152: 11818296 | G152: 11819795 | H152: -1499
A153: 133 | B153: 11 | C153: 3 | D153: FALSE | E153: 30 | F153: 11908512 | G153: 11908390 | H153: 122
A154: 134 | B154: 11 | C154: 4 | D154: FALSE | E154: 29 | F154: 11998728 | G154: 12000040 | H154: -1312
A155: 135 | B155: 11 | C155: 5 | D155: FALSE | E155: 30 | F155: 12088944 | G155: 12088635 | H155: 309
A156: 136 | B156: 11 | C156: 6 | D156: FALSE | E156: 29 | F156: 12179160 | G156: 12180285 | H156: -1125
A157: 137 | B157: 11 | C157: 7 | D157: FALSE | E157: 30 | F157: 12269376 | G157: 12268880 | H157: 496
A158: 138 | B158: 11 | C158: 8 | D158: FALSE | E158: 29 | F158: 12359592 | G158: 12360530 | H158: -938
A159: 139 | B159: 11 | C159: 9 | D159: FALSE | E159: 30 | F159: 12449808 | G159: 12449125 | H159: 683
A160: 140 | B160: 11 | C160: 10 | D160: FALSE | E160: 29 | F160: 12540024 | G160: 12540775 | H160: -751
A161: 141 | B161: 11 | C161: 11 | D161: FALSE | E161: 30 | F161: 12630240 | G161: 12629370 | H161: 870
A162: 142 | B162: 11 | C162: 12 | D162: FALSE | E162: 29 | F162: 12720456 | G162: 12721020 | H162: -564
A163: 143 | B163: 11 | C163: 13 | D163: FALSE | E163: 30 | F163: 12810672 | G163: 12809615 | H163: 1057
A164: 144 | B164: 12 | C164: 1 | D164: FALSE | E164: 30 | F164: 12900888 | G164: 12901265 | H164: -377
A165: 145 | B165: 12 | C165: 2 | D165: FALSE | E165: 29 | F165: 12991104 | G165: 12992915 | H165: -1811
A166: 146 | B166: 12 | C166: 3 | D166: FALSE | E166: 30 | F166: 13081320 | G166: 13081510 | H166: -190
A167: 147 | B167: 12 | C167: 4 | D167: FALSE | E167: 29 | F167: 13171536 | G167: 13173160 | H167: -1624
A168: 148 | B168: 12 | C168: 5 | D168: FALSE | E168: 30 | F168: 13261752 | G168: 13261755 | H168: -3
A169: 149 | B169: 12 | C169: 6 | D169: FALSE | E169: 29 | F169: 13351968 | G169: 13353405 | H169: -1437
A170: 150 | B170: 12 | C170: 7 | D170: FALSE | E170: 30 | F170: 13442184 | G170: 13442000 | H170: 184
A171: 151 | B171: 12 | C171: 8 | D171: FALSE | E171: 29 | F171: 13532400 | G171: 13533650 | H171: -1250
A172: 152 | B172: 12 | C172: 9 | D172: FALSE | E172: 30 | F172: 13622616 | G172: 13622245 | H172: 371
A173: 153 | B173: 12 | C173: 10 | D173: FALSE | E173: 29 | F173: 13712832 | G173: 13713895 | H173: -1063
A174: 154 | B174: 12 | C174: 11 | D174: FALSE | E174: 30 | F174: 13803048 | G174: 13802490 | H174: 558
A175: 155 | B175: 12 | C175: 12 | D175: FALSE | E175: 29 | F175: 13893264 | G175: 13894140 | H175: -876
A176: 156 | B176: 12 | C176: 13 | D176: FALSE | E176: 30 | F176: 13983480 | G176: 13982735 | H176: 745
A177: 157 | B177: 13 | C177: 1 | D177: FALSE | E177: 30 | F177: 14073696 | G177: 14074385 | H177: -689
A178: 158 | B178: 13 | C178: 2 | D178: FALSE | E178: 29 | F178: 14163912 | G178: 14166035 | H178: -2123
A179: 159 | B179: 13 | C179: 3 | D179: FALSE | E179: 30 | F179: 14254128 | G179: 14254630 | H179: -502
A180: 160 | B180: 13 | C180: 4 | D180: FALSE | E180: 29 | F180: 14344344 | G180: 14346280 | H180: -1936
A181: 161 | B181: 13 | C181: 5 | D181: FALSE | E181: 30 | F181: 14434560 | G181: 14434875 | H181: -315
A182: 162 | B182: 13 | C182: 6 | D182: FALSE | E182: 29 | F182: 14524776 | G182: 14526525 | H182: -1749
A183: 163 | B183: 13 | C183: 7 | D183: FALSE | E183: 30 | F183: 14614992 | G183: 14615120 | H183: -128
A184: =A183+1 -> 164 | B184: 13 | C184: 8 | D184: FALSE | E184: 29 | F184: 14705208 | G184: 14706770 | H184: -1562
A185: 165 | B185: 13 | C185: 9 | D185: FALSE | E185: 30 | F185: 14795424 | G185: 14795365 | H185: 59
A186: 166 | B186: 13 | C186: 10 | D186: FALSE | E186: 29 | F186: 14885640 | G186: 14887015 | H186: -1375
A187: 167 | B187: 13 | C187: 11 | D187: FALSE | E187: 30 | F187: 14975856 | G187: 14975610 | H187: 246
A188: 168 | B188: 13 | C188: 12 | D188: FALSE | E188: 29 | F188: 15066072 | G188: 15067260 | H188: -1188
A189: 169 | B189: 13 | C189: 13 | D189: FALSE | E189: 30 | F189: 15156288 | G189: 15155855 | H189: 433
A190: 170 | B190: 14 | C190: 1 | D190: FALSE | E190: 30 | F190: 15246504 | G190: 15247505 | H190: -1001
A191: 171 | B191: 14 | C191: 2 | D191: FALSE | E191: 29 | F191: 15336720 | G191: 15339155 | H191: -2435
A192: 172 | B192: 14 | C192: 3 | D192: FALSE | E192: 30 | F192: 15426936 | G192: 15427750 | H192: -814
A193: 173 | B193: 14 | C193: 4 | D193: FALSE | E193: 29 | F193: 15517152 | G193: 15519400 | H193: -2248
A194: 174 | B194: 14 | C194: 5 | D194: FALSE | E194: 30 | F194: 15607368 | G194: 15607995 | H194: -627
A195: 175 | B195: 14 | C195: 6 | D195: FALSE | E195: 29 | F195: 15697584 | G195: 15699645 | H195: -2061
A196: 176 | B196: 14 | C196: 7 | D196: FALSE | E196: 30 | F196: 15787800 | G196: 15788240 | H196: -440
A197: 177 | B197: 14 | C197: 8 | D197: FALSE | E197: 29 | F197: 15878016 | G197: 15879890 | H197: -1874
A198: 178 | B198: 14 | C198: 9 | D198: FALSE | E198: 30 | F198: 15968232 | G198: 15968485 | H198: -253
A199: 179 | B199: 14 | C199: 10 | D199: FALSE | E199: 29 | F199: 16058448 | G199: 16060135 | H199: -1687
A200: 180 | B200: 14 | C200: 11 | D200: FALSE | E200: 30 | F200: 16148664 | G200: 16148730 | H200: -66
A201: 181 | B201: 14 | C201: 12 | D201: FALSE | E201: 29 | F201: 16238880 | G201: 16240380 | H201: -1500
A202: 182 | B202: 14 | C202: 13 | D202: FALSE | E202: 30 | F202: 16329096 | G202: 16328975 | H202: 121
... 5941 more rows

Sheet Years
A1: Month in Cycle | B1: Lunar Year | C1: New Year Moment | D1: Elapsed | E1: Difference
A2: =StartMonth -> 13 | B2: 1 | C2: =(A2-1)*PPM -> 1082592 | D2: =LOOKUP(A2,Data!A$21:A$6143,Data!G$21:G$6143) -> 1081470 | E2: =C2-D2 -> 1122
A3: =A2+13 -> 26 | B3: =B2+1 -> 2 | C3: =(A3-1)*PPM -> 2255400 | D3: =LOOKUP(A3,Data!A$21:A$6143,Data!G$21:G$6143) -> 2254590 | E3: =C3-D3 -> 810
A4: =A3+13 -> 39 | B4: =B3+1 -> 3 | C4: 3428208 | D4: =LOOKUP(A4,Data!A$21:A$6143,Data!G$21:G$6143) -> 3427710 | E4: 498
A5: 52 | B5: 4 | C5: 4601016 | D5: =LOOKUP(A5,Data!A$21:A$6143,Data!G$21:G$6143) -> 4600830 | E5: 186
A6: 65 | B6: 5 | C6: 5773824 | D6: =LOOKUP(A6,Data!A$21:A$6143,Data!G$21:G$6143) -> 5773950 | E6: -126
A7: 78 | B7: 6 | C7: 6946632 | D7: =LOOKUP(A7,Data!A$21:A$6143,Data!G$21:G$6143) -> 6947070 | E7: -438
A8: 91 | B8: 7 | C8: 8119440 | D8: =LOOKUP(A8,Data!A$21:A$6143,Data!G$21:G$6143) -> 8120190 | E8: -750
A9: 104 | B9: 8 | C9: 9292248 | D9: =LOOKUP(A9,Data!A$21:A$6143,Data!G$21:G$6143) -> 9293310 | E9: -1062
A10: 117 | B10: 9 | C10: 10465056 | D10: =LOOKUP(A10,Data!A$21:A$6143,Data!G$21:G$6143) -> 10466430 | E10: -1374
A11: 130 | B11: 10 | C11: 11637864 | D11: =LOOKUP(A11,Data!A$21:A$6143,Data!G$21:G$6143) -> 11639550 | E11: -1686
A12: 143 | B12: 11 | C12: 12810672 | D12: =LOOKUP(A12,Data!A$21:A$6143,Data!G$21:G$6143) -> 12809615 | E12: 1057
A13: 156 | B13: 12 | C13: 13983480 | D13: =LOOKUP(A13,Data!A$21:A$6143,Data!G$21:G$6143) -> 13982735 | E13: 745
A14: 169 | B14: 13 | C14: 15156288 | D14: =LOOKUP(A14,Data!A$21:A$6143,Data!G$21:G$6143) -> 15155855 | E14: 433
A15: 182 | B15: 14 | C15: 16329096 | D15: =LOOKUP(A15,Data!A$21:A$6143,Data!G$21:G$6143) -> 16328975 | E15: 121
A16: 195 | B16: 15 | C16: 17501904 | D16: =LOOKUP(A16,Data!A$21:A$6143,Data!G$21:G$6143) -> 17502095 | E16: -191
A17: 208 | B17: 16 | C17: 18674712 | D17: =LOOKUP(A17,Data!A$21:A$6143,Data!G$21:G$6143) -> 18675215 | E17: -503
A18: 221 | B18: 17 | C18: 19847520 | D18: =LOOKUP(A18,Data!A$21:A$6143,Data!G$21:G$6143) -> 19848335 | E18: -815
A19: 234 | B19: 18 | C19: 21020328 | D19: =LOOKUP(A19,Data!A$21:A$6143,Data!G$21:G$6143) -> 21021455 | E19: -1127
A20: 247 | B20: 19 | C20: 22193136 | D20: =LOOKUP(A20,Data!A$21:A$6143,Data!G$21:G$6143) -> 22194575 | E20: -1439
A21: 260 | B21: 20 | C21: 23365944 | D21: =LOOKUP(A21,Data!A$21:A$6143,Data!G$21:G$6143) -> 23367695 | E21: -1751
A22: 273 | B22: 21 | C22: 24538752 | D22: =LOOKUP(A22,Data!A$21:A$6143,Data!G$21:G$6143) -> 24537760 | E22: 992
A23: 286 | B23: 22 | C23: 25711560 | D23: =LOOKUP(A23,Data!A$21:A$6143,Data!G$21:G$6143) -> 25710880 | E23: 680
A24: 299 | B24: 23 | C24: 26884368 | D24: =LOOKUP(A24,Data!A$21:A$6143,Data!G$21:G$6143) -> 26884000 | E24: 368
A25: 312 | B25: 24 | C25: 28057176 | D25: =LOOKUP(A25,Data!A$21:A$6143,Data!G$21:G$6143) -> 28057120 | E25: 56
A26: 325 | B26: 25 | C26: 29229984 | D26: =LOOKUP(A26,Data!A$21:A$6143,Data!G$21:G$6143) -> 29230240 | E26: -256
A27: 338 | B27: 26 | C27: 30402792 | D27: =LOOKUP(A27,Data!A$21:A$6143,Data!G$21:G$6143) -> 30403360 | E27: -568
A28: 351 | B28: 27 | C28: 31575600 | D28: =LOOKUP(A28,Data!A$21:A$6143,Data!G$21:G$6143) -> 31576480 | E28: -880
A29: 364 | B29: 28 | C29: 32748408 | D29: =LOOKUP(A29,Data!A$21:A$6143,Data!G$21:G$6143) -> 32749600 | E29: -1192
A30: 377 | B30: 29 | C30: 33921216 | D30: =LOOKUP(A30,Data!A$21:A$6143,Data!G$21:G$6143) -> 33922720 | E30: -1504
A31: 390 | B31: 30 | C31: 35094024 | D31: =LOOKUP(A31,Data!A$21:A$6143,Data!G$21:G$6143) -> 35095840 | E31: -1816
A32: 403 | B32: 31 | C32: 36266832 | D32: =LOOKUP(A32,Data!A$21:A$6143,Data!G$21:G$6143) -> 36265905 | E32: 927
A33: 416 | B33: 32 | C33: 37439640 | D33: =LOOKUP(A33,Data!A$21:A$6143,Data!G$21:G$6143) -> 37439025 | E33: 615
A34: 429 | B34: 33 | C34: 38612448 | D34: =LOOKUP(A34,Data!A$21:A$6143,Data!G$21:G$6143) -> 38612145 | E34: 303
A35: 442 | B35: 34 | C35: 39785256 | D35: =LOOKUP(A35,Data!A$21:A$6143,Data!G$21:G$6143) -> 39785265 | E35: -9
A36: 455 | B36: 35 | C36: 40958064 | D36: =LOOKUP(A36,Data!A$21:A$6143,Data!G$21:G$6143) -> 40958385 | E36: -321
A37: 468 | B37: 36 | C37: 42130872 | D37: =LOOKUP(A37,Data!A$21:A$6143,Data!G$21:G$6143) -> 42131505 | E37: -633
A38: 481 | B38: 37 | C38: 43303680 | D38: =LOOKUP(A38,Data!A$21:A$6143,Data!G$21:G$6143) -> 43304625 | E38: -945
A39: 494 | B39: 38 | C39: 44476488 | D39: =LOOKUP(A39,Data!A$21:A$6143,Data!G$21:G$6143) -> 44477745 | E39: -1257
A40: 507 | B40: 39 | C40: 45649296 | D40: =LOOKUP(A40,Data!A$21:A$6143,Data!G$21:G$6143) -> 45650865 | E40: -1569
A41: 520 | B41: 40 | C41: 46822104 | D41: =LOOKUP(A41,Data!A$21:A$6143,Data!G$21:G$6143) -> 46823985 | E41: -1881
A42: 533 | B42: 41 | C42: 47994912 | D42: =LOOKUP(A42,Data!A$21:A$6143,Data!G$21:G$6143) -> 47994050 | E42: 862
A43: 546 | B43: 42 | C43: 49167720 | D43: =LOOKUP(A43,Data!A$21:A$6143,Data!G$21:G$6143) -> 49167170 | E43: 550
A44: 559 | B44: 43 | C44: 50340528 | D44: =LOOKUP(A44,Data!A$21:A$6143,Data!G$21:G$6143) -> 50340290 | E44: 238
A45: 572 | B45: 44 | C45: 51513336 | D45: =LOOKUP(A45,Data!A$21:A$6143,Data!G$21:G$6143) -> 51513410 | E45: -74
A46: 585 | B46: 45 | C46: 52686144 | D46: =LOOKUP(A46,Data!A$21:A$6143,Data!G$21:G$6143) -> 52686530 | E46: -386
A47: 598 | B47: 46 | C47: 53858952 | D47: =LOOKUP(A47,Data!A$21:A$6143,Data!G$21:G$6143) -> 53859650 | E47: -698
A48: 611 | B48: 47 | C48: 55031760 | D48: =LOOKUP(A48,Data!A$21:A$6143,Data!G$21:G$6143) -> 55032770 | E48: -1010
A49: 624 | B49: 48 | C49: 56204568 | D49: =LOOKUP(A49,Data!A$21:A$6143,Data!G$21:G$6143) -> 56205890 | E49: -1322
A50: 637 | B50: 49 | C50: 57377376 | D50: =LOOKUP(A50,Data!A$21:A$6143,Data!G$21:G$6143) -> 57379010 | E50: -1634
A51: 650 | B51: 50 | C51: 58550184 | D51: =LOOKUP(A51,Data!A$21:A$6143,Data!G$21:G$6143) -> 58552130 | E51: -1946
A52: 663 | B52: 51 | C52: 59722992 | D52: =LOOKUP(A52,Data!A$21:A$6143,Data!G$21:G$6143) -> 59722195 | E52: 797
A53: 676 | B53: 52 | C53: 60895800 | D53: =LOOKUP(A53,Data!A$21:A$6143,Data!G$21:G$6143) -> 60895315 | E53: 485
A54: 689 | B54: 53 | C54: 62068608 | D54: =LOOKUP(A54,Data!A$21:A$6143,Data!G$21:G$6143) -> 62068435 | E54: 173
A55: 702 | B55: 54 | C55: 63241416 | D55: =LOOKUP(A55,Data!A$21:A$6143,Data!G$21:G$6143) -> 63241555 | E55: -139
A56: 715 | B56: 55 | C56: 64414224 | D56: =LOOKUP(A56,Data!A$21:A$6143,Data!G$21:G$6143) -> 64414675 | E56: -451
A57: 728 | B57: 56 | C57: 65587032 | D57: =LOOKUP(A57,Data!A$21:A$6143,Data!G$21:G$6143) -> 65587795 | E57: -763
A58: 741 | B58: 57 | C58: 66759840 | D58: =LOOKUP(A58,Data!A$21:A$6143,Data!G$21:G$6143) -> 66760915 | E58: -1075
A59: 754 | B59: 58 | C59: 67932648 | D59: =LOOKUP(A59,Data!A$21:A$6143,Data!G$21:G$6143) -> 67934035 | E59: -1387
A60: 767 | B60: 59 | C60: 69105456 | D60: =LOOKUP(A60,Data!A$21:A$6143,Data!G$21:G$6143) -> 69107155 | E60: -1699
A61: 780 | B61: 60 | C61: 70278264 | D61: =LOOKUP(A61,Data!A$21:A$6143,Data!G$21:G$6143) -> 70280275 | E61: -2011
A62: 793 | B62: 61 | C62: 71451072 | D62: =LOOKUP(A62,Data!A$21:A$6143,Data!G$21:G$6143) -> 71450340 | E62: 732
A63: 806 | B63: 62 | C63: 72623880 | D63: =LOOKUP(A63,Data!A$21:A$6143,Data!G$21:G$6143) -> 72623460 | E63: 420
A64: 819 | B64: 63 | C64: 73796688 | D64: =LOOKUP(A64,Data!A$21:A$6143,Data!G$21:G$6143) -> 73796580 | E64: 108
A65: 832 | B65: 64 | C65: 74969496 | D65: =LOOKUP(A65,Data!A$21:A$6143,Data!G$21:G$6143) -> 74969700 | E65: -204
A66: 845 | B66: 65 | C66: 76142304 | D66: =LOOKUP(A66,Data!A$21:A$6143,Data!G$21:G$6143) -> 76142820 | E66: =C66-D66 -> -516
A67: 858 | B67: 66 | C67: =(A67-1)*PPM -> 77315112 | D67: =LOOKUP(A67,Data!A$21:A$6143,Data!G$21:G$6143) -> 77315940 | E67: -828
A68: =A67+13 -> 871 | B68: =B67+1 -> 67 | C68: 78487920 | D68: =LOOKUP(A68,Data!A$21:A$6143,Data!G$21:G$6143) -> 78489060 | E68: -1140
A69: 884 | B69: 68 | C69: 79660728 | D69: =LOOKUP(A69,Data!A$21:A$6143,Data!G$21:G$6143) -> 79662180 | E69: -1452
A70: 897 | B70: 69 | C70: 80833536 | D70: =LOOKUP(A70,Data!A$21:A$6143,Data!G$21:G$6143) -> 80835300 | E70: -1764
A71: 910 | B71: 70 | C71: 82006344 | D71: =LOOKUP(A71,Data!A$21:A$6143,Data!G$21:G$6143) -> 82008420 | E71: -2076
A72: 923 | B72: 71 | C72: 83179152 | D72: =LOOKUP(A72,Data!A$21:A$6143,Data!G$21:G$6143) -> 83178485 | E72: 667
A73: 936 | B73: 72 | C73: 84351960 | D73: =LOOKUP(A73,Data!A$21:A$6143,Data!G$21:G$6143) -> 84351605 | E73: 355
A74: 949 | B74: 73 | C74: 85524768 | D74: =LOOKUP(A74,Data!A$21:A$6143,Data!G$21:G$6143) -> 85524725 | E74: 43
A75: 962 | B75: 74 | C75: 86697576 | D75: =LOOKUP(A75,Data!A$21:A$6143,Data!G$21:G$6143) -> 86697845 | E75: -269
A76: 975 | B76: 75 | C76: 87870384 | D76: =LOOKUP(A76,Data!A$21:A$6143,Data!G$21:G$6143) -> 87870965 | E76: -581
A77: 988 | B77: 76 | C77: 89043192 | D77: =LOOKUP(A77,Data!A$21:A$6143,Data!G$21:G$6143) -> 89044085 | E77: -893
A78: 1001 | B78: 77 | C78: 90216000 | D78: =LOOKUP(A78,Data!A$21:A$6143,Data!G$21:G$6143) -> 90217205 | E78: -1205
A79: 1014 | B79: 78 | C79: 91388808 | D79: =LOOKUP(A79,Data!A$21:A$6143,Data!G$21:G$6143) -> 91390325 | E79: -1517
A80: 1027 | B80: 79 | C80: 92561616 | D80: =LOOKUP(A80,Data!A$21:A$6143,Data!G$21:G$6143) -> 92563445 | E80: -1829
A81: 1040 | B81: 80 | C81: 93734424 | D81: =LOOKUP(A81,Data!A$21:A$6143,Data!G$21:G$6143) -> 93736565 | E81: -2141
A82: 1053 | B82: 81 | C82: 94907232 | D82: =LOOKUP(A82,Data!A$21:A$6143,Data!G$21:G$6143) -> 94906630 | E82: 602
A83: 1066 | B83: 82 | C83: 96080040 | D83: =LOOKUP(A83,Data!A$21:A$6143,Data!G$21:G$6143) -> 96079750 | E83: 290
A84: 1079 | B84: 83 | C84: 97252848 | D84: =LOOKUP(A84,Data!A$21:A$6143,Data!G$21:G$6143) -> 97252870 | E84: -22
A85: 1092 | B85: 84 | C85: 98425656 | D85: =LOOKUP(A85,Data!A$21:A$6143,Data!G$21:G$6143) -> 98425990 | E85: -334
A86: 1105 | B86: 85 | C86: 99598464 | D86: =LOOKUP(A86,Data!A$21:A$6143,Data!G$21:G$6143) -> 99599110 | E86: -646
A87: 1118 | B87: 86 | C87: 100771272 | D87: =LOOKUP(A87,Data!A$21:A$6143,Data!G$21:G$6143) -> 100772230 | E87: -958
A88: 1131 | B88: 87 | C88: 101944080 | D88: =LOOKUP(A88,Data!A$21:A$6143,Data!G$21:G$6143) -> 101945350 | E88: -1270
A89: 1144 | B89: 88 | C89: 103116888 | D89: =LOOKUP(A89,Data!A$21:A$6143,Data!G$21:G$6143) -> 103118470 | E89: -1582
A90: 1157 | B90: 89 | C90: 104289696 | D90: =LOOKUP(A90,Data!A$21:A$6143,Data!G$21:G$6143) -> 104291590 | E90: -1894
A91: 1170 | B91: 90 | C91: 105462504 | D91: =LOOKUP(A91,Data!A$21:A$6143,Data!G$21:G$6143) -> 105464710 | E91: -2206
A92: 1183 | B92: 91 | C92: 106635312 | D92: =LOOKUP(A92,Data!A$21:A$6143,Data!G$21:G$6143) -> 106634775 | E92: 537
A93: 1196 | B93: 92 | C93: 107808120 | D93: =LOOKUP(A93,Data!A$21:A$6143,Data!G$21:G$6143) -> 107807895 | E93: 225
A94: 1209 | B94: 93 | C94: 108980928 | D94: =LOOKUP(A94,Data!A$21:A$6143,Data!G$21:G$6143) -> 108981015 | E94: -87
A95: 1222 | B95: 94 | C95: 110153736 | D95: =LOOKUP(A95,Data!A$21:A$6143,Data!G$21:G$6143) -> 110154135 | E95: -399
A96: 1235 | B96: 95 | C96: 111326544 | D96: =LOOKUP(A96,Data!A$21:A$6143,Data!G$21:G$6143) -> 111327255 | E96: -711
A97: 1248 | B97: 96 | C97: 112499352 | D97: =LOOKUP(A97,Data!A$21:A$6143,Data!G$21:G$6143) -> 112500375 | E97: -1023
A98: 1261 | B98: 97 | C98: 113672160 | D98: =LOOKUP(A98,Data!A$21:A$6143,Data!G$21:G$6143) -> 113673495 | E98: -1335
A99: 1274 | B99: 98 | C99: 114844968 | D99: =LOOKUP(A99,Data!A$21:A$6143,Data!G$21:G$6143) -> 114846615 | E99: -1647
A100: 1287 | B100: 99 | C100: 116017776 | D100: =LOOKUP(A100,Data!A$21:A$6143,Data!G$21:G$6143) -> 116019735 | E100: -1959
A101: 1300 | B101: 100 | C101: 117190584 | D101: =LOOKUP(A101,Data!A$21:A$6143,Data!G$21:G$6143) -> 117192855 | E101: -2271
A102: 1313 | B102: 101 | C102: 118363392 | D102: =LOOKUP(A102,Data!A$21:A$6143,Data!G$21:G$6143) -> 118362920 | E102: 472
A103: 1326 | B103: 102 | C103: 119536200 | D103: =LOOKUP(A103,Data!A$21:A$6143,Data!G$21:G$6143) -> 119536040 | E103: 160
A104: 1339 | B104: 103 | C104: 120709008 | D104: =LOOKUP(A104,Data!A$21:A$6143,Data!G$21:G$6143) -> 120709160 | E104: -152
A105: 1352 | B105: 104 | C105: 121881816 | D105: =LOOKUP(A105,Data!A$21:A$6143,Data!G$21:G$6143) -> 121882280 | E105: -464
A106: 1365 | B106: 105 | C106: 123054624 | D106: =LOOKUP(A106,Data!A$21:A$6143,Data!G$21:G$6143) -> 123055400 | E106: -776
A107: 1378 | B107: 106 | C107: 124227432 | D107: =LOOKUP(A107,Data!A$21:A$6143,Data!G$21:G$6143) -> 124228520 | E107: -1088
A108: 1391 | B108: 107 | C108: 125400240 | D108: =LOOKUP(A108,Data!A$21:A$6143,Data!G$21:G$6143) -> 125401640 | E108: -1400
A109: 1404 | B109: 108 | C109: 126573048 | D109: =LOOKUP(A109,Data!A$21:A$6143,Data!G$21:G$6143) -> 126574760 | E109: -1712
A110: 1417 | B110: 109 | C110: 127745856 | D110: =LOOKUP(A110,Data!A$21:A$6143,Data!G$21:G$6143) -> 127747880 | E110: -2024
A111: 1430 | B111: 110 | C111: 128918664 | D111: =LOOKUP(A111,Data!A$21:A$6143,Data!G$21:G$6143) -> 128921000 | E111: -2336
A112: 1443 | B112: 111 | C112: 130091472 | D112: =LOOKUP(A112,Data!A$21:A$6143,Data!G$21:G$6143) -> 130091065 | E112: 407
A113: 1456 | B113: 112 | C113: 131264280 | D113: =LOOKUP(A113,Data!A$21:A$6143,Data!G$21:G$6143) -> 131264185 | E113: 95
A114: 1469 | B114: 113 | C114: 132437088 | D114: =LOOKUP(A114,Data!A$21:A$6143,Data!G$21:G$6143) -> 132437305 | E114: -217
A115: 1482 | B115: 114 | C115: 133609896 | D115: =LOOKUP(A115,Data!A$21:A$6143,Data!G$21:G$6143) -> 133610425 | E115: -529
A116: 1495 | B116: 115 | C116: 134782704 | D116: =LOOKUP(A116,Data!A$21:A$6143,Data!G$21:G$6143) -> 134783545 | E116: -841
A117: 1508 | B117: 116 | C117: 135955512 | D117: =LOOKUP(A117,Data!A$21:A$6143,Data!G$21:G$6143) -> 135956665 | E117: -1153
A118: 1521 | B118: 117 | C118: 137128320 | D118: =LOOKUP(A118,Data!A$21:A$6143,Data!G$21:G$6143) -> 137129785 | E118: -1465
A119: 1534 | B119: 118 | C119: 138301128 | D119: =LOOKUP(A119,Data!A$21:A$6143,Data!G$21:G$6143) -> 138302905 | E119: -1777
A120: 1547 | B120: 119 | C120: 139473936 | D120: =LOOKUP(A120,Data!A$21:A$6143,Data!G$21:G$6143) -> 139476025 | E120: -2089
A121: 1560 | B121: 120 | C121: 140646744 | D121: =LOOKUP(A121,Data!A$21:A$6143,Data!G$21:G$6143) -> 140649145 | E121: -2401
A122: 1573 | B122: 121 | C122: 141819552 | D122: =LOOKUP(A122,Data!A$21:A$6143,Data!G$21:G$6143) -> 141819210 | E122: 342
A123: 1586 | B123: 122 | C123: 142992360 | D123: =LOOKUP(A123,Data!A$21:A$6143,Data!G$21:G$6143) -> 142992330 | E123: 30
A124: 1599 | B124: 123 | C124: 144165168 | D124: =LOOKUP(A124,Data!A$21:A$6143,Data!G$21:G$6143) -> 144165450 | E124: -282
A125: 1612 | B125: 124 | C125: 145337976 | D125: =LOOKUP(A125,Data!A$21:A$6143,Data!G$21:G$6143) -> 145338570 | E125: -594
A126: 1625 | B126: 125 | C126: 146510784 | D126: =LOOKUP(A126,Data!A$21:A$6143,Data!G$21:G$6143) -> 146511690 | E126: -906
A127: 1638 | B127: 126 | C127: 147683592 | D127: =LOOKUP(A127,Data!A$21:A$6143,Data!G$21:G$6143) -> 147684810 | E127: -1218
A128: 1651 | B128: 127 | C128: 148856400 | D128: =LOOKUP(A128,Data!A$21:A$6143,Data!G$21:G$6143) -> 148857930 | E128: -1530
A129: 1664 | B129: 128 | C129: 150029208 | D129: =LOOKUP(A129,Data!A$21:A$6143,Data!G$21:G$6143) -> 150031050 | E129: -1842
A130: 1677 | B130: 129 | C130: 151202016 | D130: =LOOKUP(A130,Data!A$21:A$6143,Data!G$21:G$6143) -> 151204170 | E130: =C130-D130 -> -2154
A131: 1690 | B131: 130 | C131: =(A131-1)*PPM -> 152374824 | D131: =LOOKUP(A131,Data!A$21:A$6143,Data!G$21:G$6143) -> 152377290 | E131: -2466
A132: =A131+13 -> 1703 | B132: =B131+1 -> 131 | C132: 153547632 | D132: =LOOKUP(A132,Data!A$21:A$6143,Data!G$21:G$6143) -> 153547355 | E132: 277
A133: 1716 | B133: 132 | C133: 154720440 | D133: =LOOKUP(A133,Data!A$21:A$6143,Data!G$21:G$6143) -> 154720475 | E133: -35
A134: 1729 | B134: 133 | C134: 155893248 | D134: =LOOKUP(A134,Data!A$21:A$6143,Data!G$21:G$6143) -> 155893595 | E134: -347
A135: 1742 | B135: 134 | C135: 157066056 | D135: =LOOKUP(A135,Data!A$21:A$6143,Data!G$21:G$6143) -> 157066715 | E135: -659
A136: 1755 | B136: 135 | C136: 158238864 | D136: =LOOKUP(A136,Data!A$21:A$6143,Data!G$21:G$6143) -> 158239835 | E136: -971
A137: 1768 | B137: 136 | C137: 159411672 | D137: =LOOKUP(A137,Data!A$21:A$6143,Data!G$21:G$6143) -> 159412955 | E137: -1283
A138: 1781 | B138: 137 | C138: 160584480 | D138: =LOOKUP(A138,Data!A$21:A$6143,Data!G$21:G$6143) -> 160586075 | E138: -1595
A139: 1794 | B139: 138 | C139: 161757288 | D139: =LOOKUP(A139,Data!A$21:A$6143,Data!G$21:G$6143) -> 161759195 | E139: -1907
A140: 1807 | B140: 139 | C140: 162930096 | D140: =LOOKUP(A140,Data!A$21:A$6143,Data!G$21:G$6143) -> 162932315 | E140: -2219
A141: 1820 | B141: 140 | C141: 164102904 | D141: =LOOKUP(A141,Data!A$21:A$6143,Data!G$21:G$6143) -> 164105435 | E141: -2531
A142: 1833 | B142: 141 | C142: 165275712 | D142: =LOOKUP(A142,Data!A$21:A$6143,Data!G$21:G$6143) -> 165275500 | E142: 212
A143: 1846 | B143: 142 | C143: 166448520 | D143: =LOOKUP(A143,Data!A$21:A$6143,Data!G$21:G$6143) -> 166448620 | E143: -100
A144: 1859 | B144: 143 | C144: 167621328 | D144: =LOOKUP(A144,Data!A$21:A$6143,Data!G$21:G$6143) -> 167621740 | E144: -412
A145: 1872 | B145: 144 | C145: 168794136 | D145: =LOOKUP(A145,Data!A$21:A$6143,Data!G$21:G$6143) -> 168794860 | E145: -724
A146: 1885 | B146: 145 | C146: 169966944 | D146: =LOOKUP(A146,Data!A$21:A$6143,Data!G$21:G$6143) -> 169967980 | E146: -1036
A147: 1898 | B147: 146 | C147: 171139752 | D147: =LOOKUP(A147,Data!A$21:A$6143,Data!G$21:G$6143) -> 171141100 | E147: -1348
A148: 1911 | B148: 147 | C148: 172312560 | D148: =LOOKUP(A148,Data!A$21:A$6143,Data!G$21:G$6143) -> 172314220 | E148: -1660
A149: 1924 | B149: 148 | C149: 173485368 | D149: =LOOKUP(A149,Data!A$21:A$6143,Data!G$21:G$6143) -> 173487340 | E149: -1972
A150: 1937 | B150: 149 | C150: 174658176 | D150: =LOOKUP(A150,Data!A$21:A$6143,Data!G$21:G$6143) -> 174660460 | E150: -2284
A151: 1950 | B151: 150 | C151: 175830984 | D151: =LOOKUP(A151,Data!A$21:A$6143,Data!G$21:G$6143) -> 175833580 | E151: -2596
A152: 1963 | B152: 151 | C152: 177003792 | D152: =LOOKUP(A152,Data!A$21:A$6143,Data!G$21:G$6143) -> 177003645 | E152: 147
A153: 1976 | B153: 152 | C153: 178176600 | D153: =LOOKUP(A153,Data!A$21:A$6143,Data!G$21:G$6143) -> 178176765 | E153: -165
A154: 1989 | B154: 153 | C154: 179349408 | D154: =LOOKUP(A154,Data!A$21:A$6143,Data!G$21:G$6143) -> 179349885 | E154: -477
A155: 2002 | B155: 154 | C155: 180522216 | D155: =LOOKUP(A155,Data!A$21:A$6143,Data!G$21:G$6143) -> 180523005 | E155: -789
A156: 2015 | B156: 155 | C156: 181695024 | D156: =LOOKUP(A156,Data!A$21:A$6143,Data!G$21:G$6143) -> 181696125 | E156: -1101
A157: 2028 | B157: 156 | C157: 182867832 | D157: =LOOKUP(A157,Data!A$21:A$6143,Data!G$21:G$6143) -> 182869245 | E157: -1413
A158: 2041 | B158: 157 | C158: 184040640 | D158: =LOOKUP(A158,Data!A$21:A$6143,Data!G$21:G$6143) -> 184042365 | E158: -1725
A159: 2054 | B159: 158 | C159: 185213448 | D159: =LOOKUP(A159,Data!A$21:A$6143,Data!G$21:G$6143) -> 185215485 | E159: -2037
A160: 2067 | B160: 159 | C160: 186386256 | D160: =LOOKUP(A160,Data!A$21:A$6143,Data!G$21:G$6143) -> 186388605 | E160: -2349
A161: 2080 | B161: 160 | C161: 187559064 | D161: =LOOKUP(A161,Data!A$21:A$6143,Data!G$21:G$6143) -> 187561725 | E161: -2661
A162: 2093 | B162: 161 | C162: 188731872 | D162: =LOOKUP(A162,Data!A$21:A$6143,Data!G$21:G$6143) -> 188731790 | E162: 82
A163: 2106 | B163: 162 | C163: 189904680 | D163: =LOOKUP(A163,Data!A$21:A$6143,Data!G$21:G$6143) -> 189904910 | E163: -230
A164: 2119 | B164: 163 | C164: 191077488 | D164: =LOOKUP(A164,Data!A$21:A$6143,Data!G$21:G$6143) -> 191078030 | E164: -542
A165: 2132 | B165: 164 | C165: 192250296 | D165: =LOOKUP(A165,Data!A$21:A$6143,Data!G$21:G$6143) -> 192251150 | E165: -854
A166: 2145 | B166: 165 | C166: 193423104 | D166: =LOOKUP(A166,Data!A$21:A$6143,Data!G$21:G$6143) -> 193424270 | E166: -1166
A167: 2158 | B167: 166 | C167: 194595912 | D167: =LOOKUP(A167,Data!A$21:A$6143,Data!G$21:G$6143) -> 194597390 | E167: -1478
A168: 2171 | B168: 167 | C168: 195768720 | D168: =LOOKUP(A168,Data!A$21:A$6143,Data!G$21:G$6143) -> 195770510 | E168: -1790
A169: 2184 | B169: 168 | C169: 196941528 | D169: =LOOKUP(A169,Data!A$21:A$6143,Data!G$21:G$6143) -> 196943630 | E169: -2102
A170: 2197 | B170: 169 | C170: 198114336 | D170: =LOOKUP(A170,Data!A$21:A$6143,Data!G$21:G$6143) -> 198116750 | E170: -2414
A171: 2210 | B171: 170 | C171: 199287144 | D171: =LOOKUP(A171,Data!A$21:A$6143,Data!G$21:G$6143) -> 199289870 | E171: -2726
A172: 2223 | B172: 171 | C172: 200459952 | D172: =LOOKUP(A172,Data!A$21:A$6143,Data!G$21:G$6143) -> 200459935 | E172: 17
A173: 2236 | B173: 172 | C173: 201632760 | D173: =LOOKUP(A173,Data!A$21:A$6143,Data!G$21:G$6143) -> 201633055 | E173: -295
A174: 2249 | B174: 173 | C174: 202805568 | D174: =LOOKUP(A174,Data!A$21:A$6143,Data!G$21:G$6143) -> 202806175 | E174: -607
A175: 2262 | B175: 174 | C175: 203978376 | D175: =LOOKUP(A175,Data!A$21:A$6143,Data!G$21:G$6143) -> 203979295 | E175: -919
A176: 2275 | B176: 175 | C176: 205151184 | D176: =LOOKUP(A176,Data!A$21:A$6143,Data!G$21:G$6143) -> 205152415 | E176: -1231
A177: 2288 | B177: 176 | C177: 206323992 | D177: =LOOKUP(A177,Data!A$21:A$6143,Data!G$21:G$6143) -> 206325535 | E177: -1543
A178: 2301 | B178: 177 | C178: 207496800 | D178: =LOOKUP(A178,Data!A$21:A$6143,Data!G$21:G$6143) -> 207498655 | E178: -1855
A179: 2314 | B179: 178 | C179: 208669608 | D179: =LOOKUP(A179,Data!A$21:A$6143,Data!G$21:G$6143) -> 208671775 | E179: -2167
A180: 2327 | B180: 179 | C180: 209842416 | D180: =LOOKUP(A180,Data!A$21:A$6143,Data!G$21:G$6143) -> 209844895 | E180: -2479
A181: 2340 | B181: 180 | C181: 211015224 | D181: =LOOKUP(A181,Data!A$21:A$6143,Data!G$21:G$6143) -> 211018015 | E181: -2791
A182: 2353 | B182: 181 | C182: 212188032 | D182: =LOOKUP(A182,Data!A$21:A$6143,Data!G$21:G$6143) -> 212188080 | E182: -48
A183: 2366 | B183: 182 | C183: 213360840 | D183: =LOOKUP(A183,Data!A$21:A$6143,Data!G$21:G$6143) -> 213361200 | E183: -360
A184: 2379 | B184: 183 | C184: 214533648 | D184: =LOOKUP(A184,Data!A$21:A$6143,Data!G$21:G$6143) -> 214534320 | E184: -672
A185: 2392 | B185: 184 | C185: 215706456 | D185: =LOOKUP(A185,Data!A$21:A$6143,Data!G$21:G$6143) -> 215707440 | E185: -984
A186: 2405 | B186: 185 | C186: 216879264 | D186: =LOOKUP(A186,Data!A$21:A$6143,Data!G$21:G$6143) -> 216880560 | E186: -1296
A187: 2418 | B187: 186 | C187: 218052072 | D187: =LOOKUP(A187,Data!A$21:A$6143,Data!G$21:G$6143) -> 218053680 | E187: -1608
A188: 2431 | B188: 187 | C188: 219224880 | D188: =LOOKUP(A188,Data!A$21:A$6143,Data!G$21:G$6143) -> 219226800 | E188: -1920
A189: 2444 | B189: 188 | C189: 220397688 | D189: =LOOKUP(A189,Data!A$21:A$6143,Data!G$21:G$6143) -> 220399920 | E189: -2232
A190: 2457 | B190: 189 | C190: 221570496 | D190: =LOOKUP(A190,Data!A$21:A$6143,Data!G$21:G$6143) -> 221573040 | E190: -2544
A191: 2470 | B191: 190 | C191: 222743304 | D191: =LOOKUP(A191,Data!A$21:A$6143,Data!G$21:G$6143) -> 222746160 | E191: -2856
A192: 2483 | B192: 191 | C192: 223916112 | D192: =LOOKUP(A192,Data!A$21:A$6143,Data!G$21:G$6143) -> 223916225 | E192: -113
A193: 2496 | B193: 192 | C193: 225088920 | D193: =LOOKUP(A193,Data!A$21:A$6143,Data!G$21:G$6143) -> 225089345 | E193: -425
A194: 2509 | B194: 193 | C194: 226261728 | D194: =LOOKUP(A194,Data!A$21:A$6143,Data!G$21:G$6143) -> 226262465 | E194: =C194-D194 -> -737
A195: 2522 | B195: 194 | C195: =(A195-1)*PPM -> 227434536 | D195: =LOOKUP(A195,Data!A$21:A$6143,Data!G$21:G$6143) -> 227435585 | E195: -1049
A196: =A195+13 -> 2535 | B196: =B195+1 -> 195 | C196: 228607344 | D196: =LOOKUP(A196,Data!A$21:A$6143,Data!G$21:G$6143) -> 228608705 | E196: -1361
A197: 2548 | B197: 196 | C197: 229780152 | D197: =LOOKUP(A197,Data!A$21:A$6143,Data!G$21:G$6143) -> 229781825 | E197: -1673
A198: 2561 | B198: 197 | C198: 230952960 | D198: =LOOKUP(A198,Data!A$21:A$6143,Data!G$21:G$6143) -> 230954945 | E198: -1985
A199: 2574 | B199: 198 | C199: 232125768 | D199: =LOOKUP(A199,Data!A$21:A$6143,Data!G$21:G$6143) -> 232128065 | E199: -2297
A200: 2587 | B200: 199 | C200: 233298576 | D200: =LOOKUP(A200,Data!A$21:A$6143,Data!G$21:G$6143) -> 233301185 | E200: -2609
... 272 more rows

Sheet Years2
A1: Month in Cycle | B1: Lunar Year | C1: New Year Moment | D1: Elapsed | E1: Difference
A2: =StartMonth2 -> 2 | B2: 1 | C2: =(A2-1)*PPM -> 90216 | D2: =LOOKUP(A2,Data!A$21:A$6143,Data!G$21:G$6143) -> 91650 | E2: =C2-D2 -> -1434
A3: =A2+13 -> 15 | B3: =B2+1 -> 2 | C3: 1263024 | D3: =LOOKUP(A3,Data!A$21:A$6143,Data!G$21:G$6143) -> 1264770 | E3: -1746
A4: 28 | B4: 3 | C4: 2435832 | D4: =LOOKUP(A4,Data!A$21:A$6143,Data!G$21:G$6143) -> 2437890 | E4: -2058
A5: 41 | B5: 4 | C5: 3608640 | D5: =LOOKUP(A5,Data!A$21:A$6143,Data!G$21:G$6143) -> 3611010 | E5: -2370
A6: 54 | B6: 5 | C6: 4781448 | D6: =LOOKUP(A6,Data!A$21:A$6143,Data!G$21:G$6143) -> 4784130 | E6: -2682
A7: 67 | B7: 6 | C7: 5954256 | D7: =LOOKUP(A7,Data!A$21:A$6143,Data!G$21:G$6143) -> 5957250 | E7: -2994
A8: 80 | B8: 7 | C8: 7127064 | D8: =LOOKUP(A8,Data!A$21:A$6143,Data!G$21:G$6143) -> 7130370 | E8: -3306
A9: 93 | B9: 8 | C9: 8299872 | D9: =LOOKUP(A9,Data!A$21:A$6143,Data!G$21:G$6143) -> 8303490 | E9: -3618
A10: 106 | B10: 9 | C10: 9472680 | D10: =LOOKUP(A10,Data!A$21:A$6143,Data!G$21:G$6143) -> 9476610 | E10: -3930
A11: 119 | B11: 10 | C11: 10645488 | D11: =LOOKUP(A11,Data!A$21:A$6143,Data!G$21:G$6143) -> 10649730 | E11: -4242
A12: 132 | B12: 11 | C12: 11818296 | D12: =LOOKUP(A12,Data!A$21:A$6143,Data!G$21:G$6143) -> 11819795 | E12: -1499
A13: 145 | B13: 12 | C13: 12991104 | D13: =LOOKUP(A13,Data!A$21:A$6143,Data!G$21:G$6143) -> 12992915 | E13: -1811
A14: 158 | B14: 13 | C14: 14163912 | D14: =LOOKUP(A14,Data!A$21:A$6143,Data!G$21:G$6143) -> 14166035 | E14: -2123
A15: 171 | B15: 14 | C15: 15336720 | D15: =LOOKUP(A15,Data!A$21:A$6143,Data!G$21:G$6143) -> 15339155 | E15: -2435
A16: 184 | B16: 15 | C16: 16509528 | D16: =LOOKUP(A16,Data!A$21:A$6143,Data!G$21:G$6143) -> 16512275 | E16: -2747
A17: 197 | B17: 16 | C17: 17682336 | D17: =LOOKUP(A17,Data!A$21:A$6143,Data!G$21:G$6143) -> 17685395 | E17: -3059
A18: 210 | B18: 17 | C18: 18855144 | D18: =LOOKUP(A18,Data!A$21:A$6143,Data!G$21:G$6143) -> 18858515 | E18: -3371
A19: 223 | B19: 18 | C19: 20027952 | D19: =LOOKUP(A19,Data!A$21:A$6143,Data!G$21:G$6143) -> 20031635 | E19: -3683
A20: 236 | B20: 19 | C20: 21200760 | D20: =LOOKUP(A20,Data!A$21:A$6143,Data!G$21:G$6143) -> 21204755 | E20: -3995
A21: 249 | B21: 20 | C21: 22373568 | D21: =LOOKUP(A21,Data!A$21:A$6143,Data!G$21:G$6143) -> 22377875 | E21: -4307
A22: 262 | B22: 21 | C22: 23546376 | D22: =LOOKUP(A22,Data!A$21:A$6143,Data!G$21:G$6143) -> 23547940 | E22: -1564
A23: 275 | B23: 22 | C23: 24719184 | D23: =LOOKUP(A23,Data!A$21:A$6143,Data!G$21:G$6143) -> 24721060 | E23: -1876
A24: 288 | B24: 23 | C24: 25891992 | D24: =LOOKUP(A24,Data!A$21:A$6143,Data!G$21:G$6143) -> 25894180 | E24: -2188
A25: 301 | B25: 24 | C25: 27064800 | D25: =LOOKUP(A25,Data!A$21:A$6143,Data!G$21:G$6143) -> 27067300 | E25: -2500
A26: 314 | B26: 25 | C26: 28237608 | D26: =LOOKUP(A26,Data!A$21:A$6143,Data!G$21:G$6143) -> 28240420 | E26: -2812
A27: 327 | B27: 26 | C27: 29410416 | D27: =LOOKUP(A27,Data!A$21:A$6143,Data!G$21:G$6143) -> 29413540 | E27: -3124
A28: 340 | B28: 27 | C28: 30583224 | D28: =LOOKUP(A28,Data!A$21:A$6143,Data!G$21:G$6143) -> 30586660 | E28: -3436
A29: 353 | B29: 28 | C29: 31756032 | D29: =LOOKUP(A29,Data!A$21:A$6143,Data!G$21:G$6143) -> 31759780 | E29: -3748
A30: 366 | B30: 29 | C30: 32928840 | D30: =LOOKUP(A30,Data!A$21:A$6143,Data!G$21:G$6143) -> 32932900 | E30: -4060
A31: 379 | B31: 30 | C31: 34101648 | D31: =LOOKUP(A31,Data!A$21:A$6143,Data!G$21:G$6143) -> 34106020 | E31: -4372
A32: 392 | B32: 31 | C32: 35274456 | D32: =LOOKUP(A32,Data!A$21:A$6143,Data!G$21:G$6143) -> 35276085 | E32: -1629
A33: 405 | B33: 32 | C33: 36447264 | D33: =LOOKUP(A33,Data!A$21:A$6143,Data!G$21:G$6143) -> 36449205 | E33: -1941
A34: 418 | B34: 33 | C34: 37620072 | D34: =LOOKUP(A34,Data!A$21:A$6143,Data!G$21:G$6143) -> 37622325 | E34: -2253
A35: 431 | B35: 34 | C35: 38792880 | D35: =LOOKUP(A35,Data!A$21:A$6143,Data!G$21:G$6143) -> 38795445 | E35: -2565
A36: 444 | B36: 35 | C36: 39965688 | D36: =LOOKUP(A36,Data!A$21:A$6143,Data!G$21:G$6143) -> 39968565 | E36: -2877
A37: 457 | B37: 36 | C37: 41138496 | D37: =LOOKUP(A37,Data!A$21:A$6143,Data!G$21:G$6143) -> 41141685 | E37: -3189
A38: 470 | B38: 37 | C38: 42311304 | D38: =LOOKUP(A38,Data!A$21:A$6143,Data!G$21:G$6143) -> 42314805 | E38: -3501
A39: 483 | B39: 38 | C39: 43484112 | D39: =LOOKUP(A39,Data!A$21:A$6143,Data!G$21:G$6143) -> 43487925 | E39: -3813
A40: 496 | B40: 39 | C40: 44656920 | D40: =LOOKUP(A40,Data!A$21:A$6143,Data!G$21:G$6143) -> 44661045 | E40: -4125
A41: 509 | B41: 40 | C41: 45829728 | D41: =LOOKUP(A41,Data!A$21:A$6143,Data!G$21:G$6143) -> 45834165 | E41: -4437
A42: 522 | B42: 41 | C42: 47002536 | D42: =LOOKUP(A42,Data!A$21:A$6143,Data!G$21:G$6143) -> 47004230 | E42: -1694
A43: 535 | B43: 42 | C43: 48175344 | D43: =LOOKUP(A43,Data!A$21:A$6143,Data!G$21:G$6143) -> 48177350 | E43: -2006
A44: 548 | B44: 43 | C44: 49348152 | D44: =LOOKUP(A44,Data!A$21:A$6143,Data!G$21:G$6143) -> 49350470 | E44: -2318
A45: 561 | B45: 44 | C45: 50520960 | D45: =LOOKUP(A45,Data!A$21:A$6143,Data!G$21:G$6143) -> 50523590 | E45: -2630
A46: 574 | B46: 45 | C46: 51693768 | D46: =LOOKUP(A46,Data!A$21:A$6143,Data!G$21:G$6143) -> 51696710 | E46: -2942
A47: 587 | B47: 46 | C47: 52866576 | D47: =LOOKUP(A47,Data!A$21:A$6143,Data!G$21:G$6143) -> 52869830 | E47: -3254
A48: 600 | B48: 47 | C48: 54039384 | D48: =LOOKUP(A48,Data!A$21:A$6143,Data!G$21:G$6143) -> 54042950 | E48: -3566
A49: 613 | B49: 48 | C49: 55212192 | D49: =LOOKUP(A49,Data!A$21:A$6143,Data!G$21:G$6143) -> 55216070 | E49: -3878
A50: 626 | B50: 49 | C50: 56385000 | D50: =LOOKUP(A50,Data!A$21:A$6143,Data!G$21:G$6143) -> 56389190 | E50: -4190
A51: 639 | B51: 50 | C51: 57557808 | D51: =LOOKUP(A51,Data!A$21:A$6143,Data!G$21:G$6143) -> 57562310 | E51: -4502
A52: 652 | B52: 51 | C52: 58730616 | D52: =LOOKUP(A52,Data!A$21:A$6143,Data!G$21:G$6143) -> 58732375 | E52: -1759
A53: 665 | B53: 52 | C53: 59903424 | D53: =LOOKUP(A53,Data!A$21:A$6143,Data!G$21:G$6143) -> 59905495 | E53: -2071
A54: 678 | B54: 53 | C54: 61076232 | D54: =LOOKUP(A54,Data!A$21:A$6143,Data!G$21:G$6143) -> 61078615 | E54: -2383
A55: 691 | B55: 54 | C55: 62249040 | D55: =LOOKUP(A55,Data!A$21:A$6143,Data!G$21:G$6143) -> 62251735 | E55: -2695
A56: 704 | B56: 55 | C56: 63421848 | D56: =LOOKUP(A56,Data!A$21:A$6143,Data!G$21:G$6143) -> 63424855 | E56: -3007
A57: 717 | B57: 56 | C57: 64594656 | D57: =LOOKUP(A57,Data!A$21:A$6143,Data!G$21:G$6143) -> 64597975 | E57: -3319
A58: 730 | B58: 57 | C58: 65767464 | D58: =LOOKUP(A58,Data!A$21:A$6143,Data!G$21:G$6143) -> 65771095 | E58: -3631
A59: 743 | B59: 58 | C59: 66940272 | D59: =LOOKUP(A59,Data!A$21:A$6143,Data!G$21:G$6143) -> 66944215 | E59: -3943
A60: 756 | B60: 59 | C60: 68113080 | D60: =LOOKUP(A60,Data!A$21:A$6143,Data!G$21:G$6143) -> 68117335 | E60: -4255
A61: 769 | B61: 60 | C61: 69285888 | D61: =LOOKUP(A61,Data!A$21:A$6143,Data!G$21:G$6143) -> 69290455 | E61: -4567
A62: 782 | B62: 61 | C62: 70458696 | D62: =LOOKUP(A62,Data!A$21:A$6143,Data!G$21:G$6143) -> 70460520 | E62: -1824
A63: 795 | B63: 62 | C63: 71631504 | D63: =LOOKUP(A63,Data!A$21:A$6143,Data!G$21:G$6143) -> 71633640 | E63: -2136
A64: 808 | B64: 63 | C64: 72804312 | D64: =LOOKUP(A64,Data!A$21:A$6143,Data!G$21:G$6143) -> 72806760 | E64: -2448
A65: 821 | B65: 64 | C65: 73977120 | D65: =LOOKUP(A65,Data!A$21:A$6143,Data!G$21:G$6143) -> 73979880 | E65: -2760
A66: 834 | B66: 65 | C66: =(A66-1)*PPM -> 75149928 | D66: =LOOKUP(A66,Data!A$21:A$6143,Data!G$21:G$6143) -> 75153000 | E66: =C66-D66 -> -3072
A67: =A66+13 -> 847 | B67: =B66+1 -> 66 | C67: 76322736 | D67: =LOOKUP(A67,Data!A$21:A$6143,Data!G$21:G$6143) -> 76326120 | E67: -3384
A68: 860 | B68: 67 | C68: 77495544 | D68: =LOOKUP(A68,Data!A$21:A$6143,Data!G$21:G$6143) -> 77499240 | E68: -3696
A69: 873 | B69: 68 | C69: 78668352 | D69: =LOOKUP(A69,Data!A$21:A$6143,Data!G$21:G$6143) -> 78672360 | E69: -4008
A70: 886 | B70: 69 | C70: 79841160 | D70: =LOOKUP(A70,Data!A$21:A$6143,Data!G$21:G$6143) -> 79845480 | E70: -4320
A71: 899 | B71: 70 | C71: 81013968 | D71: =LOOKUP(A71,Data!A$21:A$6143,Data!G$21:G$6143) -> 81018600 | E71: -4632
A72: 912 | B72: 71 | C72: 82186776 | D72: =LOOKUP(A72,Data!A$21:A$6143,Data!G$21:G$6143) -> 82188665 | E72: -1889
A73: 925 | B73: 72 | C73: 83359584 | D73: =LOOKUP(A73,Data!A$21:A$6143,Data!G$21:G$6143) -> 83361785 | E73: -2201
A74: 938 | B74: 73 | C74: 84532392 | D74: =LOOKUP(A74,Data!A$21:A$6143,Data!G$21:G$6143) -> 84534905 | E74: -2513
A75: 951 | B75: 74 | C75: 85705200 | D75: =LOOKUP(A75,Data!A$21:A$6143,Data!G$21:G$6143) -> 85708025 | E75: -2825
A76: 964 | B76: 75 | C76: 86878008 | D76: =LOOKUP(A76,Data!A$21:A$6143,Data!G$21:G$6143) -> 86881145 | E76: -3137
A77: 977 | B77: 76 | C77: 88050816 | D77: =LOOKUP(A77,Data!A$21:A$6143,Data!G$21:G$6143) -> 88054265 | E77: -3449
A78: 990 | B78: 77 | C78: 89223624 | D78: =LOOKUP(A78,Data!A$21:A$6143,Data!G$21:G$6143) -> 89227385 | E78: -3761
A79: 1003 | B79: 78 | C79: 90396432 | D79: =LOOKUP(A79,Data!A$21:A$6143,Data!G$21:G$6143) -> 90400505 | E79: -4073
A80: 1016 | B80: 79 | C80: 91569240 | D80: =LOOKUP(A80,Data!A$21:A$6143,Data!G$21:G$6143) -> 91573625 | E80: -4385
A81: 1029 | B81: 80 | C81: 92742048 | D81: =LOOKUP(A81,Data!A$21:A$6143,Data!G$21:G$6143) -> 92746745 | E81: -4697
A82: 1042 | B82: 81 | C82: 93914856 | D82: =LOOKUP(A82,Data!A$21:A$6143,Data!G$21:G$6143) -> 93916810 | E82: -1954
A83: 1055 | B83: 82 | C83: 95087664 | D83: =LOOKUP(A83,Data!A$21:A$6143,Data!G$21:G$6143) -> 95089930 | E83: -2266
A84: 1068 | B84: 83 | C84: 96260472 | D84: =LOOKUP(A84,Data!A$21:A$6143,Data!G$21:G$6143) -> 96263050 | E84: -2578
A85: 1081 | B85: 84 | C85: 97433280 | D85: =LOOKUP(A85,Data!A$21:A$6143,Data!G$21:G$6143) -> 97436170 | E85: -2890
A86: 1094 | B86: 85 | C86: 98606088 | D86: =LOOKUP(A86,Data!A$21:A$6143,Data!G$21:G$6143) -> 98609290 | E86: -3202
A87: 1107 | B87: 86 | C87: 99778896 | D87: =LOOKUP(A87,Data!A$21:A$6143,Data!G$21:G$6143) -> 99782410 | E87: -3514
A88: 1120 | B88: 87 | C88: 100951704 | D88: =LOOKUP(A88,Data!A$21:A$6143,Data!G$21:G$6143) -> 100955530 | E88: -3826
A89: 1133 | B89: 88 | C89: 102124512 | D89: =LOOKUP(A89,Data!A$21:A$6143,Data!G$21:G$6143) -> 102128650 | E89: -4138
A90: 1146 | B90: 89 | C90: 103297320 | D90: =LOOKUP(A90,Data!A$21:A$6143,Data!G$21:G$6143) -> 103301770 | E90: -4450
A91: 1159 | B91: 90 | C91: 104470128 | D91: =LOOKUP(A91,Data!A$21:A$6143,Data!G$21:G$6143) -> 104474890 | E91: -4762
A92: 1172 | B92: 91 | C92: 105642936 | D92: =LOOKUP(A92,Data!A$21:A$6143,Data!G$21:G$6143) -> 105644955 | E92: -2019
A93: 1185 | B93: 92 | C93: 106815744 | D93: =LOOKUP(A93,Data!A$21:A$6143,Data!G$21:G$6143) -> 106818075 | E93: -2331
A94: 1198 | B94: 93 | C94: 107988552 | D94: =LOOKUP(A94,Data!A$21:A$6143,Data!G$21:G$6143) -> 107991195 | E94: -2643
A95: 1211 | B95: 94 | C95: 109161360 | D95: =LOOKUP(A95,Data!A$21:A$6143,Data!G$21:G$6143) -> 109164315 | E95: -2955
A96: 1224 | B96: 95 | C96: 110334168 | D96: =LOOKUP(A96,Data!A$21:A$6143,Data!G$21:G$6143) -> 110337435 | E96: -3267
A97: 1237 | B97: 96 | C97: 111506976 | D97: =LOOKUP(A97,Data!A$21:A$6143,Data!G$21:G$6143) -> 111510555 | E97: -3579
A98: 1250 | B98: 97 | C98: 112679784 | D98: =LOOKUP(A98,Data!A$21:A$6143,Data!G$21:G$6143) -> 112683675 | E98: -3891
A99: 1263 | B99: 98 | C99: 113852592 | D99: =LOOKUP(A99,Data!A$21:A$6143,Data!G$21:G$6143) -> 113856795 | E99: -4203
A100: 1276 | B100: 99 | C100: 115025400 | D100: =LOOKUP(A100,Data!A$21:A$6143,Data!G$21:G$6143) -> 115029915 | E100: -4515
A101: 1289 | B101: 100 | C101: 116198208 | D101: =LOOKUP(A101,Data!A$21:A$6143,Data!G$21:G$6143) -> 116203035 | E101: -4827
A102: 1302 | B102: 101 | C102: 117371016 | D102: =LOOKUP(A102,Data!A$21:A$6143,Data!G$21:G$6143) -> 117373100 | E102: -2084
A103: 1315 | B103: 102 | C103: 118543824 | D103: =LOOKUP(A103,Data!A$21:A$6143,Data!G$21:G$6143) -> 118546220 | E103: -2396
A104: 1328 | B104: 103 | C104: 119716632 | D104: =LOOKUP(A104,Data!A$21:A$6143,Data!G$21:G$6143) -> 119719340 | E104: -2708
A105: 1341 | B105: 104 | C105: 120889440 | D105: =LOOKUP(A105,Data!A$21:A$6143,Data!G$21:G$6143) -> 120892460 | E105: -3020
A106: 1354 | B106: 105 | C106: 122062248 | D106: =LOOKUP(A106,Data!A$21:A$6143,Data!G$21:G$6143) -> 122065580 | E106: -3332
A107: 1367 | B107: 106 | C107: 123235056 | D107: =LOOKUP(A107,Data!A$21:A$6143,Data!G$21:G$6143) -> 123238700 | E107: -3644
A108: 1380 | B108: 107 | C108: 124407864 | D108: =LOOKUP(A108,Data!A$21:A$6143,Data!G$21:G$6143) -> 124411820 | E108: -3956
A109: 1393 | B109: 108 | C109: 125580672 | D109: =LOOKUP(A109,Data!A$21:A$6143,Data!G$21:G$6143) -> 125584940 | E109: -4268
A110: 1406 | B110: 109 | C110: 126753480 | D110: =LOOKUP(A110,Data!A$21:A$6143,Data!G$21:G$6143) -> 126758060 | E110: -4580
A111: 1419 | B111: 110 | C111: 127926288 | D111: =LOOKUP(A111,Data!A$21:A$6143,Data!G$21:G$6143) -> 127931180 | E111: -4892
A112: 1432 | B112: 111 | C112: 129099096 | D112: =LOOKUP(A112,Data!A$21:A$6143,Data!G$21:G$6143) -> 129101245 | E112: -2149
A113: 1445 | B113: 112 | C113: 130271904 | D113: =LOOKUP(A113,Data!A$21:A$6143,Data!G$21:G$6143) -> 130274365 | E113: -2461
A114: 1458 | B114: 113 | C114: 131444712 | D114: =LOOKUP(A114,Data!A$21:A$6143,Data!G$21:G$6143) -> 131447485 | E114: -2773
A115: 1471 | B115: 114 | C115: 132617520 | D115: =LOOKUP(A115,Data!A$21:A$6143,Data!G$21:G$6143) -> 132620605 | E115: -3085
A116: 1484 | B116: 115 | C116: 133790328 | D116: =LOOKUP(A116,Data!A$21:A$6143,Data!G$21:G$6143) -> 133793725 | E116: -3397
A117: 1497 | B117: 116 | C117: 134963136 | D117: =LOOKUP(A117,Data!A$21:A$6143,Data!G$21:G$6143) -> 134966845 | E117: -3709
A118: 1510 | B118: 117 | C118: 136135944 | D118: =LOOKUP(A118,Data!A$21:A$6143,Data!G$21:G$6143) -> 136139965 | E118: -4021
A119: 1523 | B119: 118 | C119: 137308752 | D119: =LOOKUP(A119,Data!A$21:A$6143,Data!G$21:G$6143) -> 137313085 | E119: -4333
A120: 1536 | B120: 119 | C120: 138481560 | D120: =LOOKUP(A120,Data!A$21:A$6143,Data!G$21:G$6143) -> 138486205 | E120: -4645
A121: 1549 | B121: 120 | C121: 139654368 | D121: =LOOKUP(A121,Data!A$21:A$6143,Data!G$21:G$6143) -> 139659325 | E121: -4957
A122: 1562 | B122: 121 | C122: 140827176 | D122: =LOOKUP(A122,Data!A$21:A$6143,Data!G$21:G$6143) -> 140829390 | E122: -2214
A123: 1575 | B123: 122 | C123: 141999984 | D123: =LOOKUP(A123,Data!A$21:A$6143,Data!G$21:G$6143) -> 142002510 | E123: -2526
A124: 1588 | B124: 123 | C124: 143172792 | D124: =LOOKUP(A124,Data!A$21:A$6143,Data!G$21:G$6143) -> 143175630 | E124: -2838
A125: 1601 | B125: 124 | C125: 144345600 | D125: =LOOKUP(A125,Data!A$21:A$6143,Data!G$21:G$6143) -> 144348750 | E125: -3150
A126: 1614 | B126: 125 | C126: 145518408 | D126: =LOOKUP(A126,Data!A$21:A$6143,Data!G$21:G$6143) -> 145521870 | E126: -3462
A127: 1627 | B127: 126 | C127: 146691216 | D127: =LOOKUP(A127,Data!A$21:A$6143,Data!G$21:G$6143) -> 146694990 | E127: -3774
A128: 1640 | B128: 127 | C128: 147864024 | D128: =LOOKUP(A128,Data!A$21:A$6143,Data!G$21:G$6143) -> 147868110 | E128: -4086
A129: 1653 | B129: 128 | C129: 149036832 | D129: =LOOKUP(A129,Data!A$21:A$6143,Data!G$21:G$6143) -> 149041230 | E129: -4398
A130: 1666 | B130: 129 | C130: =(A130-1)*PPM -> 150209640 | D130: =LOOKUP(A130,Data!A$21:A$6143,Data!G$21:G$6143) -> 150214350 | E130: =C130-D130 -> -4710
A131: =A130+13 -> 1679 | B131: =B130+1 -> 130 | C131: 151382448 | D131: =LOOKUP(A131,Data!A$21:A$6143,Data!G$21:G$6143) -> 151387470 | E131: -5022
A132: 1692 | B132: 131 | C132: 152555256 | D132: =LOOKUP(A132,Data!A$21:A$6143,Data!G$21:G$6143) -> 152557535 | E132: -2279
A133: 1705 | B133: 132 | C133: 153728064 | D133: =LOOKUP(A133,Data!A$21:A$6143,Data!G$21:G$6143) -> 153730655 | E133: -2591
A134: 1718 | B134: 133 | C134: 154900872 | D134: =LOOKUP(A134,Data!A$21:A$6143,Data!G$21:G$6143) -> 154903775 | E134: -2903
A135: 1731 | B135: 134 | C135: 156073680 | D135: =LOOKUP(A135,Data!A$21:A$6143,Data!G$21:G$6143) -> 156076895 | E135: -3215
A136: 1744 | B136: 135 | C136: 157246488 | D136: =LOOKUP(A136,Data!A$21:A$6143,Data!G$21:G$6143) -> 157250015 | E136: -3527
A137: 1757 | B137: 136 | C137: 158419296 | D137: =LOOKUP(A137,Data!A$21:A$6143,Data!G$21:G$6143) -> 158423135 | E137: -3839
A138: 1770 | B138: 137 | C138: 159592104 | D138: =LOOKUP(A138,Data!A$21:A$6143,Data!G$21:G$6143) -> 159596255 | E138: -4151
A139: 1783 | B139: 138 | C139: 160764912 | D139: =LOOKUP(A139,Data!A$21:A$6143,Data!G$21:G$6143) -> 160769375 | E139: -4463
A140: 1796 | B140: 139 | C140: 161937720 | D140: =LOOKUP(A140,Data!A$21:A$6143,Data!G$21:G$6143) -> 161942495 | E140: -4775
A141: 1809 | B141: 140 | C141: 163110528 | D141: =LOOKUP(A141,Data!A$21:A$6143,Data!G$21:G$6143) -> 163115615 | E141: -5087
A142: 1822 | B142: 141 | C142: 164283336 | D142: =LOOKUP(A142,Data!A$21:A$6143,Data!G$21:G$6143) -> 164285680 | E142: -2344
A143: 1835 | B143: 142 | C143: 165456144 | D143: =LOOKUP(A143,Data!A$21:A$6143,Data!G$21:G$6143) -> 165458800 | E143: -2656
A144: 1848 | B144: 143 | C144: 166628952 | D144: =LOOKUP(A144,Data!A$21:A$6143,Data!G$21:G$6143) -> 166631920 | E144: -2968
A145: 1861 | B145: 144 | C145: 167801760 | D145: =LOOKUP(A145,Data!A$21:A$6143,Data!G$21:G$6143) -> 167805040 | E145: -3280
A146: 1874 | B146: 145 | C146: 168974568 | D146: =LOOKUP(A146,Data!A$21:A$6143,Data!G$21:G$6143) -> 168978160 | E146: -3592
A147: 1887 | B147: 146 | C147: 170147376 | D147: =LOOKUP(A147,Data!A$21:A$6143,Data!G$21:G$6143) -> 170151280 | E147: -3904
A148: 1900 | B148: 147 | C148: 171320184 | D148: =LOOKUP(A148,Data!A$21:A$6143,Data!G$21:G$6143) -> 171324400 | E148: -4216
A149: 1913 | B149: 148 | C149: 172492992 | D149: =LOOKUP(A149,Data!A$21:A$6143,Data!G$21:G$6143) -> 172497520 | E149: -4528
A150: 1926 | B150: 149 | C150: 173665800 | D150: =LOOKUP(A150,Data!A$21:A$6143,Data!G$21:G$6143) -> 173670640 | E150: -4840
A151: 1939 | B151: 150 | C151: 174838608 | D151: =LOOKUP(A151,Data!A$21:A$6143,Data!G$21:G$6143) -> 174843760 | E151: -5152
A152: 1952 | B152: 151 | C152: 176011416 | D152: =LOOKUP(A152,Data!A$21:A$6143,Data!G$21:G$6143) -> 176013825 | E152: -2409
A153: 1965 | B153: 152 | C153: 177184224 | D153: =LOOKUP(A153,Data!A$21:A$6143,Data!G$21:G$6143) -> 177186945 | E153: -2721
A154: 1978 | B154: 153 | C154: 178357032 | D154: =LOOKUP(A154,Data!A$21:A$6143,Data!G$21:G$6143) -> 178360065 | E154: -3033
A155: 1991 | B155: 154 | C155: 179529840 | D155: =LOOKUP(A155,Data!A$21:A$6143,Data!G$21:G$6143) -> 179533185 | E155: -3345
A156: 2004 | B156: 155 | C156: 180702648 | D156: =LOOKUP(A156,Data!A$21:A$6143,Data!G$21:G$6143) -> 180706305 | E156: -3657
A157: 2017 | B157: 156 | C157: 181875456 | D157: =LOOKUP(A157,Data!A$21:A$6143,Data!G$21:G$6143) -> 181879425 | E157: -3969
A158: 2030 | B158: 157 | C158: 183048264 | D158: =LOOKUP(A158,Data!A$21:A$6143,Data!G$21:G$6143) -> 183052545 | E158: -4281
A159: 2043 | B159: 158 | C159: 184221072 | D159: =LOOKUP(A159,Data!A$21:A$6143,Data!G$21:G$6143) -> 184225665 | E159: -4593
A160: 2056 | B160: 159 | C160: 185393880 | D160: =LOOKUP(A160,Data!A$21:A$6143,Data!G$21:G$6143) -> 185398785 | E160: -4905
A161: 2069 | B161: 160 | C161: 186566688 | D161: =LOOKUP(A161,Data!A$21:A$6143,Data!G$21:G$6143) -> 186571905 | E161: -5217
A162: 2082 | B162: 161 | C162: 187739496 | D162: =LOOKUP(A162,Data!A$21:A$6143,Data!G$21:G$6143) -> 187741970 | E162: -2474
A163: 2095 | B163: 162 | C163: 188912304 | D163: =LOOKUP(A163,Data!A$21:A$6143,Data!G$21:G$6143) -> 188915090 | E163: -2786
A164: 2108 | B164: 163 | C164: 190085112 | D164: =LOOKUP(A164,Data!A$21:A$6143,Data!G$21:G$6143) -> 190088210 | E164: -3098
A165: 2121 | B165: 164 | C165: 191257920 | D165: =LOOKUP(A165,Data!A$21:A$6143,Data!G$21:G$6143) -> 191261330 | E165: -3410
A166: 2134 | B166: 165 | C166: 192430728 | D166: =LOOKUP(A166,Data!A$21:A$6143,Data!G$21:G$6143) -> 192434450 | E166: -3722
A167: 2147 | B167: 166 | C167: 193603536 | D167: =LOOKUP(A167,Data!A$21:A$6143,Data!G$21:G$6143) -> 193607570 | E167: -4034
A168: 2160 | B168: 167 | C168: 194776344 | D168: =LOOKUP(A168,Data!A$21:A$6143,Data!G$21:G$6143) -> 194780690 | E168: -4346
A169: 2173 | B169: 168 | C169: 195949152 | D169: =LOOKUP(A169,Data!A$21:A$6143,Data!G$21:G$6143) -> 195953810 | E169: -4658
A170: 2186 | B170: 169 | C170: 197121960 | D170: =LOOKUP(A170,Data!A$21:A$6143,Data!G$21:G$6143) -> 197126930 | E170: -4970
A171: 2199 | B171: 170 | C171: 198294768 | D171: =LOOKUP(A171,Data!A$21:A$6143,Data!G$21:G$6143) -> 198300050 | E171: -5282
A172: 2212 | B172: 171 | C172: 199467576 | D172: =LOOKUP(A172,Data!A$21:A$6143,Data!G$21:G$6143) -> 199470115 | E172: -2539
A173: 2225 | B173: 172 | C173: 200640384 | D173: =LOOKUP(A173,Data!A$21:A$6143,Data!G$21:G$6143) -> 200643235 | E173: -2851
A174: 2238 | B174: 173 | C174: 201813192 | D174: =LOOKUP(A174,Data!A$21:A$6143,Data!G$21:G$6143) -> 201816355 | E174: -3163
A175: 2251 | B175: 174 | C175: 202986000 | D175: =LOOKUP(A175,Data!A$21:A$6143,Data!G$21:G$6143) -> 202989475 | E175: -3475
A176: 2264 | B176: 175 | C176: 204158808 | D176: =LOOKUP(A176,Data!A$21:A$6143,Data!G$21:G$6143) -> 204162595 | E176: -3787
A177: 2277 | B177: 176 | C177: 205331616 | D177: =LOOKUP(A177,Data!A$21:A$6143,Data!G$21:G$6143) -> 205335715 | E177: -4099
A178: 2290 | B178: 177 | C178: 206504424 | D178: =LOOKUP(A178,Data!A$21:A$6143,Data!G$21:G$6143) -> 206508835 | E178: -4411
A179: 2303 | B179: 178 | C179: 207677232 | D179: =LOOKUP(A179,Data!A$21:A$6143,Data!G$21:G$6143) -> 207681955 | E179: -4723
A180: 2316 | B180: 179 | C180: 208850040 | D180: =LOOKUP(A180,Data!A$21:A$6143,Data!G$21:G$6143) -> 208855075 | E180: -5035
A181: 2329 | B181: 180 | C181: 210022848 | D181: =LOOKUP(A181,Data!A$21:A$6143,Data!G$21:G$6143) -> 210028195 | E181: -5347
A182: 2342 | B182: 181 | C182: 211195656 | D182: =LOOKUP(A182,Data!A$21:A$6143,Data!G$21:G$6143) -> 211198260 | E182: -2604
A183: 2355 | B183: 182 | C183: 212368464 | D183: =LOOKUP(A183,Data!A$21:A$6143,Data!G$21:G$6143) -> 212371380 | E183: -2916
A184: 2368 | B184: 183 | C184: 213541272 | D184: =LOOKUP(A184,Data!A$21:A$6143,Data!G$21:G$6143) -> 213544500 | E184: -3228
A185: 2381 | B185: 184 | C185: 214714080 | D185: =LOOKUP(A185,Data!A$21:A$6143,Data!G$21:G$6143) -> 214717620 | E185: -3540
A186: 2394 | B186: 185 | C186: 215886888 | D186: =LOOKUP(A186,Data!A$21:A$6143,Data!G$21:G$6143) -> 215890740 | E186: -3852
A187: 2407 | B187: 186 | C187: 217059696 | D187: =LOOKUP(A187,Data!A$21:A$6143,Data!G$21:G$6143) -> 217063860 | E187: -4164
A188: 2420 | B188: 187 | C188: 218232504 | D188: =LOOKUP(A188,Data!A$21:A$6143,Data!G$21:G$6143) -> 218236980 | E188: -4476
A189: 2433 | B189: 188 | C189: 219405312 | D189: =LOOKUP(A189,Data!A$21:A$6143,Data!G$21:G$6143) -> 219410100 | E189: -4788
A190: 2446 | B190: 189 | C190: 220578120 | D190: =LOOKUP(A190,Data!A$21:A$6143,Data!G$21:G$6143) -> 220583220 | E190: -5100
A191: 2459 | B191: 190 | C191: 221750928 | D191: =LOOKUP(A191,Data!A$21:A$6143,Data!G$21:G$6143) -> 221756340 | E191: -5412
A192: 2472 | B192: 191 | C192: 222923736 | D192: =LOOKUP(A192,Data!A$21:A$6143,Data!G$21:G$6143) -> 222926405 | E192: -2669
A193: 2485 | B193: 192 | C193: 224096544 | D193: =LOOKUP(A193,Data!A$21:A$6143,Data!G$21:G$6143) -> 224099525 | E193: -2981
A194: 2498 | B194: 193 | C194: =(A194-1)*PPM -> 225269352 | D194: =LOOKUP(A194,Data!A$21:A$6143,Data!G$21:G$6143) -> 225272645 | E194: =C194-D194 -> -3293
A195: =A194+13 -> 2511 | B195: =B194+1 -> 194 | C195: 226442160 | D195: =LOOKUP(A195,Data!A$21:A$6143,Data!G$21:G$6143) -> 226445765 | E195: -3605
A196: 2524 | B196: 195 | C196: 227614968 | D196: =LOOKUP(A196,Data!A$21:A$6143,Data!G$21:G$6143) -> 227618885 | E196: -3917
A197: 2537 | B197: 196 | C197: 228787776 | D197: =LOOKUP(A197,Data!A$21:A$6143,Data!G$21:G$6143) -> 228792005 | E197: -4229
A198: 2550 | B198: 197 | C198: 229960584 | D198: =LOOKUP(A198,Data!A$21:A$6143,Data!G$21:G$6143) -> 229965125 | E198: -4541
A199: 2563 | B199: 198 | C199: 231133392 | D199: =LOOKUP(A199,Data!A$21:A$6143,Data!G$21:G$6143) -> 231138245 | E199: -4853
A200: 2576 | B200: 199 | C200: 232306200 | D200: =LOOKUP(A200,Data!A$21:A$6143,Data!G$21:G$6143) -> 232311365 | E200: -5165
... 272 more rows

Sheet Rules
A1: Lunar year has 13 months
A2: 470 thirteen-month lunar years per cycle
A3: =470*13 -> 6110 | B3: months
A4: odd-numbered months have 30 days, even numbered months have 29 days
A5: so common years have 7 full months and 6 deficient months
A6: length of common year = | B6: =6*29+7*30 -> 384
A7: but when the year number is divisible by 10 or 235 one day is removed from the last month
A8: so instead of having | B8: =7*470 -> 3290 | C8: full months per cycle
B9: 47 | C9: are removed for years divisible by 10
B10: 1 | C10: is removed for years divisible by 235 (470 is already a leap year because it is divisible by 10)
B11: =B8-B9-B10 -> 3242
A12: ="so the mean month = 29+"&B11&"/"&A3&" days = 29+"&reducefraction(3242,6110,FALSE,FALSE,TRUE)&" days" -> so the mean month = 29+3242/6110 days = 29+1621/3055 days
A13: and so the overall calendar cycle is a double lunar cycle.

Sheet Zoom
A1: 0 | B1: = Current Zoom Level
A2: Level | B2: Months | C2: MajorTick | D2: MinorTick | E2: Shift | F2: Connect | G2: Years | H2: YearsMajor | I2: YearsMinor
A3: =ROW()-3 -> 0 | B3: =2*MPC -> 6110 | C3: 520 | D3: 52 | F3: FALSE | G3: =B3/13 -> 470 | H3: 20 | I3: 5
A4: 1 | B4: =B5*2 -> 3328 | C4: 260 | D4: 26 | E4: =B5 -> 1664 | F4: FALSE | G4: =B4/13 -> 256 | H4: 10 | I4: 2
A5: 2 | B5: 1664 | C5: 130 | D5: 13 | E5: 832 | F5: FALSE | G5: =B5/13 -> 128 | H5: 5 | I5: 1
A6: 3 | B6: 832 | C6: 52 | D6: 13 | E6: 416 | F6: FALSE | G6: 64 | H6: 2 | I6: 1
A7: 4 | B7: 416 | C7: 13 | D7: 13 | E7: 208 | F7: FALSE | G7: 32 | H7: 1 | I7: 1
A8: 5 | B8: 208 | C8: 13 | D8: 13 | E8: 104 | F8: TRUE | G8: 16 | H8: 1 | I8: 1
A9: 6 | B9: 104 | C9: 13 | D9: 1 | E9: 52 | F9: TRUE | G9: 8 | H9: 1 | I9: =1/13 -> 0.07692307692
A10: 7 | B10: 52 | C10: 13 | D10: 1 | E10: 26 | F10: TRUE | G10: 4 | H10: 1 | I10: =1/13 -> 0.07692307692
A11: 8 | B11: =B12*2 -> 26 | C11: 1 | D11: 1 | E11: =B12 -> 13 | F11: TRUE | G11: 2 | H11: 1 | I11: =1/13 -> 0.07692307692
A12: 9 | B12: 13 | C12: 1 | D12: 1 | E12: 13 | F12: TRUE | G12: 1 | H12: 1 | I12: =1/13 -> 0.07692307692

Sheet Labels
A1: Lunar Year | B1: Hours | C1: ="Span "&B2-B28&"h" -> Span 78h
A2: 471 | B2: 30
A3: =A2 -> 471 | B3: =B2-3 -> 27
A4: =A3 -> 471 | B4: =B3-3 -> 24
A5: =A4 -> 471 | B5: 21
A6: =A5 -> 471 | B6: 18
A7: 471 | B7: 15
A8: 471 | B8: 12
A9: 471 | B9: 9
A10: 471 | B10: 6
A11: 471 | B11: 3
A12: 471 | B12: 0
A13: 471 | B13: -3
A14: 471 | B14: -6
A15: 471 | B15: -9
A16: =A15 -> 471 | B16: =B15-3 -> -12
A17: 471 | B17: -15
A18: 471 | B18: -18
A19: 471 | B19: -21
A20: 471 | B20: -24
A21: 471 | B21: -27
A22: 471 | B22: -30
A23: 471 | B23: -33
A24: =A23 -> 471 | B24: =B23-3 -> -36
A25: =A24 -> 471 | B25: =B24-3 -> -39
A26: =A25 -> 471 | B26: =B25-3 -> -42
A27: =A26 -> 471 | B27: =B26-3 -> -45
A28: =A27 -> 471 | B28: =B27-3 -> -48
